{"text_format":"1","workbook":"xlsx","n_sheets":2,"sheets":["入力シート","分析補助シート（学校質問）"],"not_rendered":{"charts":1,"images":0,"macros":1,"external_links":0,"defined_names":4,"comments":0,"pivot_tables":0},"unopened":[],"bounds":{"document_bytes":16777216,"sheet_cells":100000,"rows_first":2000,"rows_last":500,"rows_between":2000,"halvings":0,"cell_chars":16384,"cell_head_chars":4096},"cells_cut":0,"cells_raw":0,"read":"whole","date_system":"1900"}

{"sheet":"入力シート","index":0,"n_rows":479,"n_cols":26,"rows_kept":479,"cut":false,"hidden":false,"merged":[[7,15,7,21],[8,24,9,24],[98,2,101,2],[98,3,101,3],[46,1,49,1],[50,1,53,1],[66,1,69,1],[82,1,85,1],[86,1,89,1],[90,1,93,1],[94,1,97,1],[98,1,101,1],[8,2,9,2],[8,3,9,3],[10,1,13,1],[10,2,13,2],[10,3,13,3],[86,3,89,3],[90,2,93,2],[90,3,93,3],[94,2,97,2],[94,3,97,3],[46,2,49,2],[22,2,25,2],[4,1,5,14],[8,1,9,1],[7,1,7,12],[158,2,161,2],[158,3,161,3],[146,2,149,2],[146,3,149,3],[150,1,153,1],[150,2,153,2],[150,3,153,3],[102,2,105,2],[102,3,105,3],[106,2,109,2],[106,3,109,3],[110,2,113,2],[110,3,113,3],[14,1,17,1],[14,2,17,2],[14,3,17,3],[18,1,21,1],[18,2,21,2],[18,3,21,3],[8,4,8,23],[22,1,25,1],[258,1,261,1],[258,2,261,2],[258,3,261,3],[234,1,237,1],[214,1,217,1],[214,2,217,2],[214,3,217,3],[218,1,221,1],[218,2,221,2],[218,3,221,3],[226,1,229,1],[226,2,229,2],[226,3,229,3],[230,1,233,1],[230,2,233,2],[230,3,233,3],[234,2,237,2],[234,3,237,3],[238,1,241,1],[238,2,241,2],[238,3,241,3],[242,1,245,1],[242,2,245,2],[242,3,245,3],[250,1,253,1],[250,2,253,2],[250,3,253,3],[254,1,257,1],[254,2,257,2],[254,3,257,3],[194,1,197,1],[194,2,197,2],[194,3,197,3],[198,1,201,1],[198,2,201,2],[198,3,201,3],[206,3,209,3],[210,1,213,1],[210,2,213,2],[210,3,213,3],[222,1,225,1],[222,2,225,2],[222,3,225,3],[286,1,289,1],[286,2,289,2],[286,3,289,3],[262,1,265,1],[262,2,265,2],[262,3,265,3],[266,1,269,1],[266,2,269,2],[266,3,269,3],[270,1,273,1],[270,2,273,2],[270,3,273,3],[274,1,277,1],[274,2,277,2],[274,3,277,3],[278,1,281,1],[278,2,281,2],[278,3,281,3],[282,1,285,1],[282,2,285,2],[282,3,285,3],[318,1,321,1],[318,2,321,2],[318,3,321,3],[290,1,293,1],[290,2,293,2],[290,3,293,3],[294,1,297,1],[294,2,297,2],[294,3,297,3],[298,1,301,1],[298,2,301,2],[298,3,301,3],[302,1,305,1],[302,2,305,2],[302,3,305,3],[306,1,309,1],[306,2,309,2],[306,3,309,3],[310,1,313,1],[310,2,313,2],[310,3,313,3],[314,1,317,1],[314,2,317,2],[314,3,317,3],[346,1,349,1],[346,2,349,2],[346,3,349,3],[322,1,325,1],[322,2,325,2],[322,3,325,3],[326,1,329,1],[326,2,329,2],[326,3,329,3],[330,1,333,1],[330,2,333,2],[330,3,333,3],[334,1,337,1],[334,2,337,2],[334,3,337,3],[338,1,341,1],[338,2,341,2],[338,3,341,3],[342,1,345,1],[342,2,345,2],[342,3,345,3],[362,2,365,2],[362,3,365,3],[366,1,369,1],[366,2,369,2],[366,3,369,3],[370,1,373,1],[370,2,373,2],[370,3,373,3],[374,1,377,1],[374,2,377,2],[374,3,377,3],[110,0,113,0],[114,0,117,0],[118,0,121,0],[86,0,89,0],[90,0,93,0],[394,1,397,1],[394,2,397,2],[394,3,397,3],[398,1,401,1],[398,2,401,2],[398,3,401,3],[382,1,385,1],[382,2,385,2],[382,3,385,3],[386,1,389,1],[386,2,389,2],[386,3,389,3],[390,1,393,1],[390,2,393,2],[390,3,393,3],[378,1,381,1],[378,2,381,2],[378,3,381,3],[350,1,353,1],[210,0,213,0],[214,0,217,0],[218,0,221,0],[222,0,225,0],[226,0,229,0],[178,0,181,0],[182,0,185,0],[186,0,189,0],[190,0,193,0],[194,0,197,0],[198,0,201,0],[258,0,261,0],[262,0,265,0],[266,0,269,0],[270,0,273,0],[274,0,277,0],[278,0,281,0],[282,0,285,0],[230,0,233,0],[234,0,237,0],[238,0,241,0],[242,0,245,0],[246,0,249,0],[250,0,253,0],[254,0,257,0],[310,0,313,0],[314,0,317,0],[318,0,321,0],[322,0,325,0],[326,0,329,0],[330,0,333,0],[334,0,337,0],[286,0,289,0],[290,0,293,0],[294,0,297,0],[298,0,301,0],[302,0,305,0],[306,0,309,0],[366,0,369,0],[370,0,373,0],[374,0,377,0],[378,0,381,0],[382,0,385,0],[386,0,389,0],[390,0,393,0],[338,0,341,0],[342,0,345,0],[346,0,349,0],[350,0,353,0],[354,0,357,0],[358,0,361,0],[362,0,365,0],[418,0,421,0],[422,0,425,0],[426,0,429,0],[394,0,397,0],[398,0,401,0],[402,0,405,0],[406,0,409,0],[410,0,413,0],[414,0,417,0],[22,3,25,3],[26,1,29,1],[26,2,29,2],[26,3,29,3],[30,2,33,2],[30,3,33,3],[34,1,37,1],[34,2,37,2],[34,3,37,3],[38,1,41,1],[38,2,41,2],[38,3,41,3],[42,1,45,1],[42,2,45,2],[42,3,45,3],[30,1,33,1],[50,3,53,3],[54,1,57,1],[54,2,57,2],[54,3,57,3],[46,3,49,3],[50,2,53,2],[58,1,61,1],[58,2,61,2],[58,3,61,3],[78,3,81,3],[66,2,69,2],[114,2,117,2],[114,3,117,3],[118,1,121,1],[118,2,121,2],[118,3,121,3],[62,1,65,1],[62,2,65,2],[62,3,65,3],[66,3,69,3],[70,1,73,1],[70,2,73,2],[70,3,73,3],[74,1,77,1],[74,2,77,2],[74,3,77,3],[102,1,105,1],[106,1,109,1],[110,1,113,1],[114,1,117,1],[82,2,85,2],[82,3,85,3],[86,2,89,2],[138,3,141,3],[142,1,145,1],[142,2,145,2],[142,3,145,3],[162,1,165,1],[162,2,165,2],[162,3,165,3],[122,3,125,3],[126,1,129,1],[126,2,129,2],[126,3,129,3],[130,2,133,2],[130,3,133,3],[134,1,137,1],[134,2,137,2],[134,3,137,3],[122,1,125,1],[122,2,125,2],[130,1,133,1],[146,1,149,1],[154,1,157,1],[154,2,157,2],[154,3,157,3],[158,1,161,1],[186,3,189,3],[190,1,193,1],[190,2,193,2],[190,3,193,3],[202,1,205,1],[202,2,205,2],[202,3,205,3],[166,1,169,1],[166,2,169,2],[166,3,169,3],[170,1,173,1],[170,2,173,2],[170,3,173,3],[182,1,185,1],[182,2,185,2],[182,3,185,3],[174,1,177,1],[174,2,177,2],[174,3,177,3],[178,1,181,1],[178,2,181,2],[178,3,181,3],[46,0,49,0],[50,0,53,0],[54,0,57,0],[58,0,61,0],[62,0,65,0],[66,0,69,0],[70,0,73,0],[206,1,209,1],[206,2,209,2],[186,1,189,1],[186,2,189,2],[138,1,141,1],[138,2,141,2],[78,1,81,1],[78,2,81,2],[202,0,205,0],[206,0,209,0],[150,0,153,0],[154,0,157,0],[158,0,161,0],[162,0,165,0],[166,0,169,0],[170,0,173,0],[174,0,177,0],[10,0,13,0],[14,0,17,0],[18,0,21,0],[22,0,25,0],[26,0,29,0],[30,0,33,0],[34,0,37,0],[38,0,41,0],[42,0,45,0],[74,0,77,0],[78,0,81,0],[82,0,85,0],[122,0,125,0],[126,0,129,0],[130,0,133,0],[134,0,137,0],[138,0,141,0],[142,0,145,0],[146,0,149,0],[94,0,97,0],[98,0,101,0],[102,0,105,0],[106,0,109,0],[410,1,413,1],[410,2,413,2],[410,3,413,3],[414,1,417,1],[414,2,417,2],[414,3,417,3],[246,1,249,1],[246,2,249,2],[246,3,249,3],[402,2,405,2],[402,3,405,3],[406,1,409,1],[406,2,409,2],[406,3,409,3],[402,1,405,1],[350,2,353,2],[350,3,353,3],[354,1,357,1],[354,2,357,2],[354,3,357,3],[358,1,361,1],[358,2,361,2],[358,3,361,3],[362,1,365,1],[418,1,421,1],[418,2,421,2],[418,3,421,3],[422,1,425,1],[422,2,425,2],[422,3,425,3],[426,1,429,1],[426,2,429,2],[426,3,429,3],[430,1,433,1],[430,2,433,2],[430,3,433,3],[430,0,433,0],[434,0,437,0],[438,0,441,0],[442,0,445,0],[446,0,449,0],[450,0,453,0],[446,1,449,1],[446,2,449,2],[446,3,449,3],[450,1,453,1],[450,2,453,2],[450,3,453,3],[434,1,437,1],[434,2,437,2],[434,3,437,3],[438,1,441,1],[438,2,441,2],[438,3,441,3],[442,1,445,1],[442,2,445,2],[442,3,445,3]]}
[null,"令和８年度全国学力・学習状況調査",null,null,null,null,null,null,null,null,null,null,null,null,null,null,null,null,null,null,null,null,null,null,"中学校調査"]
[null,"回答状況　［学校質問］"]
[]
[]
[]
[]
[]
[null,null,null,null,null,null,null,null,null,null,null,null,null,null,null,"1段目：都道府県(公立)の学校数\n2段目：都道府県(公立)の学校数の割合(％)\n3段目：全国(公立)の学校数の割合(％)"]
[null,"質問\n番号","質問事項","貴校\n回答","選択肢",null,null,null,null,null,null,null,null,null,null,null,null,null,null,null,null,null,null,null,"その他\n無回答"]
[null,null,null,null,"１","２","３","４","５","６","７","８","９","１０","１１","１２","１３","１４","１５","１６","１７","１８","１９","２０"]
[1,"（１）","本年４月１日現在の学校の全学年の生徒数",null,21,22,28,13,7,0,null,null,null,null,null,null,null,null,null,null,null,null,null,null,0]
[null,null,null,null,23.1,24.2,30.8,14.3,7.7,0,null,null,null,null,null,null,null,null,null,null,null,null,null,null,0]
[]
[null,null,null,null,12.6,9.1999999999999993,23.1,36,16.399999999999999,2.8,null,null,null,null,null,null,null,null,null,null,null,null,null,null,0]
[{"$f":"A11+1","v":2},"（２）","本年４月１日現在の第３学年の生徒数（特別支援学級の生徒数は除く）",null,19,11,13,8,18,6,10,2,4,null,null,null,null,null,null,null,null,null,null,null,0]
[null,null,null,null,20.9,12.1,14.3,8.8000000000000007,19.8,6.6,11,2.2000000000000002,4.4000000000000004,null,null,null,null,null,null,null,null,null,null,null,0]
[]
[null,null,null,null,10,6.7,5.4,5.2,18.5,18.600000000000001,15.9,9.8000000000000007,9.9,null,null,null,null,null,null,null,null,null,null,null,0]
[{"$f":"A15+1","v":3},"（３）","本年４月１日現在の学校の全学年の学級数（特別支援学級は除く）",null,1,53,16,5,9,3,1,3,0,0,null,null,null,null,null,null,null,null,null,null,0]
[null,null,null,null,1.1000000000000001,58.2,17.600000000000001,5.5,9.9,3.3,1.1000000000000001,3.3,0,0,null,null,null,null,null,null,null,null,null,null,0]
[]
[null,null,null,null,2.7,23.8,18.7,18.899999999999999,15.7,9.4,5.6,2.6,2.2000000000000002,0.3,null,null,null,null,null,null,null,null,null,null,0.2]
[{"$f":"A19+1","v":4},"（４）","本年４月１日現在の第３学年の学級数（特別支援学級は除く）",null,51,17,7,8,4,1,2,1,0,null,null,null,null,null,null,null,null,null,null,null,0]
[null,null,null,null,56,18.7,7.7,8.8000000000000007,4.4000000000000004,1.1000000000000001,2.2000000000000002,1.1000000000000001,0,null,null,null,null,null,null,null,null,null,null,null,0]
[]
[null,null,null,null,22.9,18.3,18.7,16.8,10.6,6.1,3.3,2.6,0.2,null,null,null,null,null,null,null,null,null,null,null,0.5]
[{"$f":"A23+1","v":5},"（５）","本年４月１日現在の学校の全教員数（副校長、教頭、主幹教諭、指導教諭、教諭、助教諭、養護教諭、養護助教諭、栄養教諭、講師（常勤））",null,0,8,33,18,10,4,6,5,7,null,null,null,null,null,null,null,null,null,null,null,0]
[null,null,null,null,0,8.8000000000000007,36.299999999999997,19.8,11,4.4000000000000004,6.6,5.5,7.7,null,null,null,null,null,null,null,null,null,null,null,0]
[]
[null,null,null,null,0.3,4.7,16.2,13.8,15,15.2,12.1,8.1,14.5,null,null,null,null,null,null,null,null,null,null,null,0.1]
[{"$f":"A27+1","v":6},"（６）","調査対象学年の生徒のうち、就学援助を受けている生徒の割合",null,9,5,14,28,9,11,5,7,3,null,null,null,null,null,null,null,null,null,null,null,0]
[null,null,null,null,9.9,5.5,15.4,30.8,9.9,12.1,5.5,7.7,3.3,null,null,null,null,null,null,null,null,null,null,null,0]
[]
[null,null,null,null,6.5,11.8,23.5,24.2,15,8.5,4.4000000000000004,4.5,1.5,null,null,null,null,null,null,null,null,null,null,null,0.2]
[{"$f":"A31+1","v":7},"（７）","調査対象学年の生徒は、熱意をもって勉強していると思いますか",null,8,67,15,1,null,null,null,null,null,null,null,null,null,null,null,null,null,null,null,null,0]
[null,null,null,null,8.8000000000000007,73.599999999999994,16.5,1.1000000000000001,null,null,null,null,null,null,null,null,null,null,null,null,null,null,null,null,0]
[]
[null,null,null,null,19.7,65.400000000000006,14.2,0.6,null,null,null,null,null,null,null,null,null,null,null,null,null,null,null,null,0.1]
[{"$f":"A35+1","v":8},"（８）","調査対象学年の生徒は、授業中の私語が少なく、落ち着いていると思いますか",null,37,42,12,0,null,null,null,null,null,null,null,null,null,null,null,null,null,null,null,null,0]
[null,null,null,null,40.700000000000003,46.2,13.2,0,null,null,null,null,null,null,null,null,null,null,null,null,null,null,null,null,0]
[]
[null,null,null,null,43.6,47.1,8.6,0.7,null,null,null,null,null,null,null,null,null,null,null,null,null,null,null,null,0]
[{"$f":"A39+1","v":9},"（９）","調査対象学年の生徒は、礼儀正しいと思いますか",null,31,50,10,0,null,null,null,null,null,null,null,null,null,null,null,null,null,null,null,null,0]
[null,null,null,null,34.1,54.9,11,0,null,null,null,null,null,null,null,null,null,null,null,null,null,null,null,null,0]
[]
[null,null,null,null,34.1,56.3,9,0.5,null,null,null,null,null,null,null,null,null,null,null,null,null,null,null,null,0.1]
[{"$f":"A43+1","v":10},"（１０）","調査対象学年の生徒に対して、前年度までに、将来就きたい仕事や夢について考えさせる指導を行いましたか",null,27,62,2,0,null,null,null,null,null,null,null,null,null,null,null,null,null,null,null,null,0]
[null,null,null,null,29.7,68.099999999999994,2.2000000000000002,0,null,null,null,null,null,null,null,null,null,null,null,null,null,null,null,null,0]
[]
[null,null,null,null,44.9,52.6,2.2999999999999998,0.1,null,null,null,null,null,null,null,null,null,null,null,null,null,null,null,null,0.1]
[{"$f":"A47+1","v":11},"（１１）","調査対象学年の生徒に対して、前年度までに、学校生活の中で、生徒一人一人のよい点や可能性を見付け評価する（褒めるなど）取組を行いましたか",null,42,49,0,0,null,null,null,null,null,null,null,null,null,null,null,null,null,null,null,null,0]
[null,null,null,null,46.2,53.8,0,0,null,null,null,null,null,null,null,null,null,null,null,null,null,null,null,null,0]
[]
[null,null,null,null,54.4,43.9,1.6,0,null,null,null,null,null,null,null,null,null,null,null,null,null,null,null,null,0.1]
[{"$f":"A51+1","v":12},"（１２）","近視の予防の一環として、学校の休み時間（昼休みを含む）や放課後などの時間（部活動の朝練・放課後練習を含む）に屋外に出ることや、読書や電子機器の使用などの近い所を見る作業に当たっての配慮事項（対象から３０ｃｍ以上目を離す、３０分に１回は目を休めるなど）について指導していますか",null,12,9,30,40,null,null,null,null,null,null,null,null,null,null,null,null,null,null,null,null,0]
[null,null,null,null,13.2,9.9,33,44,null,null,null,null,null,null,null,null,null,null,null,null,null,null,null,null,0]
[]
[null,null,null,null,24.8,14.3,33.1,27.7,null,null,null,null,null,null,null,null,null,null,null,null,null,null,null,null,0.1]
[{"$f":"A55+1","v":13},"（１３）","スクールカウンセラーやスクールソーシャルワーカーによる教育相談に関して、生徒が相談したい時に相談できる体制となっていますか",null,63,27,0,1,null,null,null,null,null,null,null,null,null,null,null,null,null,null,null,null,0]
[null,null,null,null,69.2,29.7,0,1.1000000000000001,null,null,null,null,null,null,null,null,null,null,null,null,null,null,null,null,0]
[]
[null,null,null,null,73.7,23.5,2.1,0.6,null,null,null,null,null,null,null,null,null,null,null,null,null,null,null,null,0.1]
[{"$f":"A59+1","v":14},"（１４）","前年度に、教員が授業で問題を抱えている場合、率先してそのことについて話し合うことを行いましたか",null,15,29,23,13,0,10,null,null,null,null,null,null,null,null,null,null,null,null,null,null,1]
[null,null,null,null,16.5,31.9,25.3,14.3,0,11,null,null,null,null,null,null,null,null,null,null,null,null,null,null,1.1000000000000001]
[]
[null,null,null,null,31,34.200000000000003,21.8,8.1999999999999993,0.2,4.3,null,null,null,null,null,null,null,null,null,null,null,null,null,null,0.2]
[{"$f":"A63+1","v":15},"（１５）","前年度に、教員が学級の問題を抱えている場合、ともに問題解決に当たることを行いましたか",null,30,31,19,7,0,3,null,null,null,null,null,null,null,null,null,null,null,null,null,null,1]
[null,null,null,null,33,34.1,20.9,7.7,0,3.3,null,null,null,null,null,null,null,null,null,null,null,null,null,null,1.1000000000000001]
[]
[null,null,null,null,47.4,31.6,13.2,5.0999999999999996,0.2,2.4,null,null,null,null,null,null,null,null,null,null,null,null,null,null,0.2]
[{"$f":"A67+1","v":16},"（１６）","ICTを活用した校務の効率化（事務の軽減）の優良事例を十分に取り入れていますか",null,23,67,0,null,null,null,null,null,null,null,null,null,null,null,null,null,null,null,null,null,1]
[null,null,null,null,25.3,73.599999999999994,0,null,null,null,null,null,null,null,null,null,null,null,null,null,null,null,null,null,1.1000000000000001]
[]
[null,null,null,null,40.4,58.9,0.6,null,null,null,null,null,null,null,null,null,null,null,null,null,null,null,null,null,0.1]
[{"$f":"A71+1","v":17},"（１７）","生徒の姿や地域の現状等に関する調査や各種データなどに基づき、教育課程を編成し、実施し、評価して改善を図る一連のPDCAサイクルを確立していますか",null,20,67,3,0,null,null,null,null,null,null,null,null,null,null,null,null,null,null,null,null,1]
[null,null,null,null,22,73.599999999999994,3.3,0,null,null,null,null,null,null,null,null,null,null,null,null,null,null,null,null,1.1000000000000001]
[]
[null,null,null,null,38.6,57.3,3.8,0,null,null,null,null,null,null,null,null,null,null,null,null,null,null,null,null,0.2]
[{"$f":"A75+1","v":18},"（１８）","指導計画の作成に当たっては、教育内容と、教育活動に必要な人的・物的資源等を、地域等の外部の資源を含めて活用しながら効果的に組み合わせていますか",null,32,54,3,0,null,null,null,null,null,null,null,null,null,null,null,null,null,null,null,null,2]
[null,null,null,null,35.200000000000003,59.3,3.3,0,null,null,null,null,null,null,null,null,null,null,null,null,null,null,null,null,2.2000000000000002]
[]
[null,null,null,null,37.6,56.1,6.1,0.1,null,null,null,null,null,null,null,null,null,null,null,null,null,null,null,null,0.1]
[{"$f":"A79+1","v":19},"（１９）","学校運営上の課題への対応に当たっては、各教職員（支援スタッフを含む）の専門性を活かせるよう適切な役割分担や連携協働をしていますか",null,41,46,3,0,null,null,null,null,null,null,null,null,null,null,null,null,null,null,null,null,1]
[null,null,null,null,45.1,50.5,3.3,0,null,null,null,null,null,null,null,null,null,null,null,null,null,null,null,null,1.1000000000000001]
[]
[null,null,null,null,57.4,41.7,0.8,0,null,null,null,null,null,null,null,null,null,null,null,null,null,null,null,null,0.1]
[{"$f":"A83+1","v":20},"（２０）","今までの取組をそのまま踏襲するのではなく、新しい取組を導入したり、提案をしたりしてくる教職員が多いですか",null,25,59,6,0,null,null,null,null,null,null,null,null,null,null,null,null,null,null,null,null,1]
[null,null,null,null,27.5,64.8,6.6,0,null,null,null,null,null,null,null,null,null,null,null,null,null,null,null,null,1.1000000000000001]
[]
[null,null,null,null,35.200000000000003,55.5,9,0.2,null,null,null,null,null,null,null,null,null,null,null,null,null,null,null,null,0.1]
[{"$f":"A87+1","v":21},"（２１）","教職員が困っているとき、管理職と教職員との間で随時相談できるなど組織的に対応する体制を構築していますか",null,46,42,2,0,null,null,null,null,null,null,null,null,null,null,null,null,null,null,null,null,1]
[null,null,null,null,50.5,46.2,2.2000000000000002,0,null,null,null,null,null,null,null,null,null,null,null,null,null,null,null,null,1.1000000000000001]
[]
[null,null,null,null,66.099999999999994,32.9,0.9,0.1,null,null,null,null,null,null,null,null,null,null,null,null,null,null,null,null,0.1]
[{"$f":"A91+1","v":22},"（２２）","特定の教員が学級担任を務めるのではなく、複数の教員が共同で学級担任を務める体制（いわゆる、チーム担任制、グループ担任制）を実施していますか",null,8,4,10,68,null,null,null,null,null,null,null,null,null,null,null,null,null,null,null,null,1]
[null,null,null,null,8.8000000000000007,4.4000000000000004,11,74.7,null,null,null,null,null,null,null,null,null,null,null,null,null,null,null,null,1.1000000000000001]
[]
[null,null,null,null,14.7,6.8,12.4,66,null,null,null,null,null,null,null,null,null,null,null,null,null,null,null,null,0.1]
[{"$f":"A95+1","v":23},"（２３）","ストレスチェックの結果の活用や研修など、教職員自身の心身の健康状態につき振り返り対処する機会が提供されていますか",null,20,48,20,2,null,null,null,null,null,null,null,null,null,null,null,null,null,null,null,null,1]
[null,null,null,null,22,52.7,22,2.2000000000000002,null,null,null,null,null,null,null,null,null,null,null,null,null,null,null,null,1.1000000000000001]
[]
[null,null,null,null,36.5,49.6,12.4,1.4,null,null,null,null,null,null,null,null,null,null,null,null,null,null,null,null,0.1]
[{"$f":"A99+1","v":24},"（２４）","生徒にとって、学校施設全体として、生徒が学びや生活がしやすく、居心地のよい建物だと思いますか",null,25,44,20,1,null,null,null,null,null,null,null,null,null,null,null,null,null,null,null,null,1]
[null,null,null,null,27.5,48.4,22,1.1000000000000001,null,null,null,null,null,null,null,null,null,null,null,null,null,null,null,null,1.1000000000000001]
[]
[null,null,null,null,33.1,48.1,15.9,2.7,null,null,null,null,null,null,null,null,null,null,null,null,null,null,null,null,0.1]
[{"$f":"A103+1","v":25},"（２５）","教職員にとって、学校施設全体として、教職員が働きやすく、居心地のよい建物だと思いますか",null,25,37,27,1,null,null,null,null,null,null,null,null,null,null,null,null,null,null,null,null,1]
[null,null,null,null,27.5,40.700000000000003,29.7,1.1000000000000001,null,null,null,null,null,null,null,null,null,null,null,null,null,null,null,null,1.1000000000000001]
[]
[null,null,null,null,28.6,50.2,18,3.2,null,null,null,null,null,null,null,null,null,null,null,null,null,null,null,null,0.1]
[{"$f":"A107+1","v":26},"（２６）","調査対象学年の生徒は、授業では、課題の解決に向けて、自分で考え、自分から取り組むことができていると思いますか",null,7,62,22,0,null,null,null,null,null,null,null,null,null,null,null,null,null,null,null,null,0]
[null,null,null,null,7.7,68.099999999999994,24.2,0,null,null,null,null,null,null,null,null,null,null,null,null,null,null,null,null,0]
[]
[null,null,null,null,19.100000000000001,68.099999999999994,12.4,0.3,null,null,null,null,null,null,null,null,null,null,null,null,null,null,null,null,0.1]
[{"$f":"A111+1","v":27},"（２７）","調査対象学年の生徒は、授業において、自らの考えがうまく伝わるよう、資料や文章、話の組立てなどを工夫して、発言や発表を行うことができていると思いますか",null,9,60,22,0,null,null,null,null,null,null,null,null,null,null,null,null,null,null,null,null,0]
[null,null,null,null,9.9,65.900000000000006,24.2,0,null,null,null,null,null,null,null,null,null,null,null,null,null,null,null,null,0]
[]
[null,null,null,null,15.2,66.2,18.3,0.2,null,null,null,null,null,null,null,null,null,null,null,null,null,null,null,null,0.1]
[{"$f":"A115+1","v":28},"（２８）","調査対象学年の生徒は、学級やグループでの話合いなどの活動で、自分の考えを相手にしっかりと伝えることができていると思いますか",null,19,54,18,0,null,null,null,null,null,null,null,null,null,null,null,null,null,null,null,null,0]
[null,null,null,null,20.9,59.3,19.8,0,null,null,null,null,null,null,null,null,null,null,null,null,null,null,null,null,0]
[]
[null,null,null,null,23.5,65.900000000000006,10.199999999999999,0.2,null,null,null,null,null,null,null,null,null,null,null,null,null,null,null,null,0.1]
[{"$f":"A119+1","v":29},"（２９）","調査対象学年の生徒は、授業や学校生活では、友達や周りの人の考えを大切にして、お互いに協力しながら課題の解決に取り組めていると思いますか",null,27,56,8,0,null,null,null,null,null,null,null,null,null,null,null,null,null,null,null,null,0]
[null,null,null,null,29.7,61.5,8.8000000000000007,0,null,null,null,null,null,null,null,null,null,null,null,null,null,null,null,null,0]
[]
[null,null,null,null,32.5,62.4,4.9000000000000004,0.1,null,null,null,null,null,null,null,null,null,null,null,null,null,null,null,null,0.1]
[{"$f":"A123+1","v":30},"（３０）","調査対象学年の生徒は、授業では、自分で学ぶ内容を決め、計画を立てて学ぶ活動を行っていると思いますか",null,6,37,44,4,null,null,null,null,null,null,null,null,null,null,null,null,null,null,null,null,0]
[null,null,null,null,6.6,40.700000000000003,48.4,4.4000000000000004,null,null,null,null,null,null,null,null,null,null,null,null,null,null,null,null,0]
[]
[null,null,null,null,8.6999999999999993,48,39.9,3.4,null,null,null,null,null,null,null,null,null,null,null,null,null,null,null,null,0.1]
[{"$f":"A127+1","v":31},"（３１）","調査対象学年の生徒に対して、前年度までに、学習指導において、生徒一人一人に応じて、学習課題や活動を工夫しましたか",null,17,55,19,0,null,null,null,null,null,null,null,null,null,null,null,null,null,null,null,null,0]
[null,null,null,null,18.7,60.4,20.9,0,null,null,null,null,null,null,null,null,null,null,null,null,null,null,null,null,0]
[]
[null,null,null,null,23.4,64.099999999999994,12.2,0.2,null,null,null,null,null,null,null,null,null,null,null,null,null,null,null,null,0.1]
[{"$f":"A131+1","v":32},"（３２）","調査対象学年の生徒に対して、前年度までに、学習指導において、生徒が、それぞれのよさを生かしながら、他者と情報交換して話し合ったり、異なる視点から考えたり、協力し合ったりできるように学習課題や活動を工夫しましたか",null,16,67,7,0,null,null,null,null,null,null,null,null,null,null,null,null,null,null,null,null,1]
[null,null,null,null,17.600000000000001,73.599999999999994,7.7,0,null,null,null,null,null,null,null,null,null,null,null,null,null,null,null,null,1.1000000000000001]
[]
[null,null,null,null,31.3,63.3,5.2,0.1,null,null,null,null,null,null,null,null,null,null,null,null,null,null,null,null,0.1]
[{"$f":"A135+1","v":33},"（３３）","調査対象学年の生徒に対して、前年度までに、授業において、生徒自ら学級やグループで課題を設定し、その解決に向けて話し合い、まとめ、表現するなどの学習活動を取り入れましたか",null,12,62,16,1,null,null,null,null,null,null,null,null,null,null,null,null,null,null,null,null,0]
[null,null,null,null,13.2,68.099999999999994,17.600000000000001,1.1000000000000001,null,null,null,null,null,null,null,null,null,null,null,null,null,null,null,null,0]
[]
[null,null,null,null,25.4,60,14.3,0.3,null,null,null,null,null,null,null,null,null,null,null,null,null,null,null,null,0.1]
[{"$f":"A139+1","v":34},"（３４）","調査対象学年の生徒に対して、前年度までに、習得・活用及び探究の学習過程を見通した指導方法の改善及び工夫をしましたか",null,10,61,19,0,null,null,null,null,null,null,null,null,null,null,null,null,null,null,null,null,1]
[null,null,null,null,11,67,20.9,0,null,null,null,null,null,null,null,null,null,null,null,null,null,null,null,null,1.1000000000000001]
[]
[null,null,null,null,19.7,66.400000000000006,13.6,0.2,null,null,null,null,null,null,null,null,null,null,null,null,null,null,null,null,0.2]
[{"$f":"A143+1","v":35},"（３５）","調査対象学年の生徒に対して、前年度までに、関連する既習事項を振り返り、知識を総合的に関連付ける学習活動を行いましたか",null,11,70,10,0,null,null,null,null,null,null,null,null,null,null,null,null,null,null,null,null,0]
[null,null,null,null,12.1,76.900000000000006,11,0,null,null,null,null,null,null,null,null,null,null,null,null,null,null,null,null,0]
[]
[null,null,null,null,23.3,67.3,9.1,0.1,null,null,null,null,null,null,null,null,null,null,null,null,null,null,null,null,0.2]
[{"$f":"A147+1","v":36},"（３６）","調査対象学年の生徒に対して、前年度までに、各教科等で身に付けたことを、様々な課題の解決に生かすことができるような機会を設けましたか",null,8,61,22,0,null,null,null,null,null,null,null,null,null,null,null,null,null,null,null,null,0]
[null,null,null,null,8.8000000000000007,67,24.2,0,null,null,null,null,null,null,null,null,null,null,null,null,null,null,null,null,0]
[]
[null,null,null,null,15,64.900000000000006,19.7,0.2,null,null,null,null,null,null,null,null,null,null,null,null,null,null,null,null,0.1]
[{"$f":"A151+1","v":37},"（３７）","調査対象学年の生徒に対して、前年度までに、教科等の指導に当たって、地域や社会で起こっている問題や出来事を学習の題材として取り扱いましたか",null,17,57,17,0,null,null,null,null,null,null,null,null,null,null,null,null,null,null,null,null,0]
[null,null,null,null,18.7,62.6,18.7,0,null,null,null,null,null,null,null,null,null,null,null,null,null,null,null,null,0]
[]
[null,null,null,null,18.600000000000001,63.9,17,0.3,null,null,null,null,null,null,null,null,null,null,null,null,null,null,null,null,0.1]
[{"$f":"A155+1","v":38},"（３８）","調査対象学年の生徒に対して、前年度に、本やインターネット、図書館資料などを活用した授業を計画的に行いましたか",null,15,36,35,5,0,null,null,null,null,null,null,null,null,null,null,null,null,null,null,null,0]
[null,null,null,null,16.5,39.6,38.5,5.5,0,null,null,null,null,null,null,null,null,null,null,null,null,null,null,null,0]
[]
[null,null,null,null,29.7,37.200000000000003,24.9,7.7,0.4,null,null,null,null,null,null,null,null,null,null,null,null,null,null,null,0.1]
[{"$f":"A159+1","v":39},"（３９）","調査対象学年の生徒に対して、総合的な学習の時間において、課題の設定からまとめ・表現に至る探究の過程を意識した指導をしていますか",null,32,50,8,0,null,null,null,null,null,null,null,null,null,null,null,null,null,null,null,null,1]
[null,null,null,null,35.200000000000003,54.9,8.8000000000000007,0,null,null,null,null,null,null,null,null,null,null,null,null,null,null,null,null,1.1000000000000001]
[]
[null,null,null,null,38.1,53.2,8.4,0.2,null,null,null,null,null,null,null,null,null,null,null,null,null,null,null,null,0.1]
[{"$f":"A163+1","v":40},"（４０）","調査対象学年の生徒に対して、総合的な学習の時間において、生徒一人一人がICT機器を活用することにより、探究の過程の質が向上することを意識した指導をしていますか",null,37,47,6,0,null,null,null,null,null,null,null,null,null,null,null,null,null,null,null,null,1]
[null,null,null,null,40.700000000000003,51.6,6.6,0,null,null,null,null,null,null,null,null,null,null,null,null,null,null,null,null,1.1000000000000001]
[]
[null,null,null,null,46,47.9,5.8,0.1,null,null,null,null,null,null,null,null,null,null,null,null,null,null,null,null,0.1]
[{"$f":"A167+1","v":41},"（４１）","調査対象学年の生徒に対して、学級生活をよりよくするために、学級活動で話し合い、互いの意見のよさを生かして解決方法等を合意形成できるような指導を行っていますか",null,18,60,12,0,null,null,null,null,null,null,null,null,null,null,null,null,null,null,null,null,1]
[null,null,null,null,19.8,65.900000000000006,13.2,0,null,null,null,null,null,null,null,null,null,null,null,null,null,null,null,null,1.1000000000000001]
[]
[null,null,null,null,36.299999999999997,57.2,6.2,0.1,null,null,null,null,null,null,null,null,null,null,null,null,null,null,null,null,0.1]
[{"$f":"A171+1","v":42},"（４２）","調査対象学年の生徒に対して、学級活動の授業を通して、今、努力すべきことを学級での話合いを生かして、一人一人の生徒が意思決定できるような指導を行っていますか",null,16,60,14,0,null,null,null,null,null,null,null,null,null,null,null,null,null,null,null,null,1]
[null,null,null,null,17.600000000000001,65.900000000000006,15.4,0,null,null,null,null,null,null,null,null,null,null,null,null,null,null,null,null,1.1000000000000001]
[]
[null,null,null,null,30.1,61.8,7.8,0.2,null,null,null,null,null,null,null,null,null,null,null,null,null,null,null,null,0.1]
[{"$f":"A175+1","v":43},"（４３）","調査対象学年の生徒に対して、特別の教科 道徳において、取り上げる題材を生徒自らが自分自身の問題として捉え、考え、話し合うような指導の工夫をしていますか",null,25,59,6,0,null,null,null,null,null,null,null,null,null,null,null,null,null,null,null,null,1]
[null,null,null,null,27.5,64.8,6.6,0,null,null,null,null,null,null,null,null,null,null,null,null,null,null,null,null,1.1000000000000001]
[]
[null,null,null,null,40.6,56.2,3,0.1,null,null,null,null,null,null,null,null,null,null,null,null,null,null,null,null,0.1]
[{"$f":"A179+1","v":44},"（４４）","調査対象学年の生徒に対して、前年度までに、創意工夫の中で学習評価の妥当性や信頼性が高められるよう、評価規準や評価方法の教員間での明確化・共有化や、学年会や教科等部会等の校内組織の活用等、組織的かつ計画的な取組を行いましたか",null,11,67,13,0,null,null,null,null,null,null,null,null,null,null,null,null,null,null,null,null,0]
[null,null,null,null,12.1,73.599999999999994,14.3,0,null,null,null,null,null,null,null,null,null,null,null,null,null,null,null,null,0]
[]
[null,null,null,null,33.4,59.3,7.1,0.1,null,null,null,null,null,null,null,null,null,null,null,null,null,null,null,null,0.2]
[{"$f":"A183+1","v":45},"（４５）","調査対象学年の生徒に対して、前年度までに、国語の授業で、学習状況に即して生徒のよい点や進歩の状況を積極的に伝えることを行いましたか",null,26,62,2,0,null,null,null,null,null,null,null,null,null,null,null,null,null,null,null,null,1]
[null,null,null,null,28.6,68.099999999999994,2.2000000000000002,0,null,null,null,null,null,null,null,null,null,null,null,null,null,null,null,null,1.1000000000000001]
[]
[null,null,null,null,40.200000000000003,56.6,2.9,0.1,null,null,null,null,null,null,null,null,null,null,null,null,null,null,null,null,0.2]
[{"$f":"A187+1","v":46},"（４６）","調査対象学年の生徒に対して、前年度までに、国語の授業で、生徒に学習の状況について改善すべき点を伝え、改善できるように手立てを講じることを行いましたか",null,26,57,7,0,null,null,null,null,null,null,null,null,null,null,null,null,null,null,null,null,1]
[null,null,null,null,28.6,62.6,7.7,0,null,null,null,null,null,null,null,null,null,null,null,null,null,null,null,null,1.1000000000000001]
[]
[null,null,null,null,37.299999999999997,59.6,2.8,0.1,null,null,null,null,null,null,null,null,null,null,null,null,null,null,null,null,0.1]
[{"$f":"A191+1","v":47},"（４７）","調査対象学年の生徒に対して、前年度までに、互いの立場や考えを尊重しながら話し合い、結論を導くために考えをまとめることができるような指導を行いましたか",null,20,64,6,0,null,null,null,null,null,null,null,null,null,null,null,null,null,null,null,null,1]
[null,null,null,null,22,70.3,6.6,0,null,null,null,null,null,null,null,null,null,null,null,null,null,null,null,null,1.1000000000000001]
[]
[null,null,null,null,38.4,55.5,5.8,0.1,null,null,null,null,null,null,null,null,null,null,null,null,null,null,null,null,0.2]
[{"$f":"A195+1","v":48},"（４８）","調査対象学年の生徒に対して、前年度までに、表現の工夫とその効果などについて、読み手からの助言などを踏まえ、自分の文章のよい点や改善点を見いだすことができるような指導を行いましたか",null,20,57,13,0,null,null,null,null,null,null,null,null,null,null,null,null,null,null,null,null,1]
[null,null,null,null,22,62.6,14.3,0,null,null,null,null,null,null,null,null,null,null,null,null,null,null,null,null,1.1000000000000001]
[]
[null,null,null,null,34,59.4,6.4,0.1,null,null,null,null,null,null,null,null,null,null,null,null,null,null,null,null,0.2]
[{"$f":"A199+1","v":49},"（４９）","調査対象学年の生徒に対する数学の授業において、前年度までに、日常生活や社会における事象との関連を図った授業を行いましたか",null,13,61,16,0,null,null,null,null,null,null,null,null,null,null,null,null,null,null,null,null,1]
[null,null,null,null,14.3,67,17.600000000000001,0,null,null,null,null,null,null,null,null,null,null,null,null,null,null,null,null,1.1000000000000001]
[]
[null,null,null,null,24.3,64.900000000000006,10.6,0.2,null,null,null,null,null,null,null,null,null,null,null,null,null,null,null,null,0.1]
[{"$f":"A203+1","v":50},"（５０）","調査対象学年の生徒に対する数学の授業において、前年度までに、観察や操作、実験等の活動を通して、数量や図形等の性質を見いだす活動を行いましたか",null,13,59,18,0,null,null,null,null,null,null,null,null,null,null,null,null,null,null,null,null,1]
[null,null,null,null,14.3,64.8,19.8,0,null,null,null,null,null,null,null,null,null,null,null,null,null,null,null,null,1.1000000000000001]
[]
[null,null,null,null,23.2,60.5,15.7,0.4,null,null,null,null,null,null,null,null,null,null,null,null,null,null,null,null,0.1]
[{"$f":"A207+1","v":51},"（５１）","調査対象学年の生徒に対する数学の授業において、前年度までに、問題の答えを求めさせるだけではなく、どのように考え、その答えになったのかなどについて、根拠を明確にして生徒に筋道を立てて説明させるような授業を行いましたか",null,27,55,8,0,null,null,null,null,null,null,null,null,null,null,null,null,null,null,null,null,1]
[null,null,null,null,29.7,60.4,8.8000000000000007,0,null,null,null,null,null,null,null,null,null,null,null,null,null,null,null,null,1.1000000000000001]
[]
[null,null,null,null,46.7,49,4.0999999999999996,0.1,null,null,null,null,null,null,null,null,null,null,null,null,null,null,null,null,0.2]
[{"$f":"A211+1","v":52},"（５２）","調査対象学年の生徒に対する数学の授業において、前年度までに、授業で、学習上つまずいた生徒に対する対応を行えていましたか",null,27,57,6,0,null,null,null,null,null,null,null,null,null,null,null,null,null,null,null,null,1]
[null,null,null,null,29.7,62.6,6.6,0,null,null,null,null,null,null,null,null,null,null,null,null,null,null,null,null,1.1000000000000001]
[]
[null,null,null,null,43.1,52.7,4.0999999999999996,0.1,null,null,null,null,null,null,null,null,null,null,null,null,null,null,null,null,0.1]
[{"$f":"A215+1","v":53},"（５３）","調査対象学年の生徒に対する理科の授業において、前年度までに、日常生活や社会における事象との関連を図った授業を行いましたか",null,30,59,1,0,null,null,null,null,null,null,null,null,null,null,null,null,null,null,null,null,1]
[null,null,null,null,33,64.8,1.1000000000000001,0,null,null,null,null,null,null,null,null,null,null,null,null,null,null,null,null,1.1000000000000001]
[]
[null,null,null,null,47,50.9,1.8,0.1,null,null,null,null,null,null,null,null,null,null,null,null,null,null,null,null,0.2]
[{"$f":"A219+1","v":54},"（５４）","調査対象学年の生徒に対する理科の授業において、前年度までに、観察や実験の結果を分析し解釈する指導を行いましたか",null,43,47,0,0,null,null,null,null,null,null,null,null,null,null,null,null,null,null,null,null,1]
[null,null,null,null,47.3,51.6,0,0,null,null,null,null,null,null,null,null,null,null,null,null,null,null,null,null,1.1000000000000001]
[]
[null,null,null,null,54.1,43.4,2.4,0.1,null,null,null,null,null,null,null,null,null,null,null,null,null,null,null,null,0.2]
[{"$f":"A223+1","v":55},"（５５）","調査対象学年の生徒に対する英語の授業において、前年度までに、英語を聞いて（一文一文ではなく全体の）概要や要点を捉える活動を行いましたか",null,30,50,11,0,null,null,null,null,null,null,null,null,null,null,null,null,null,null,null,null,0]
[null,null,null,null,33,54.9,12.1,0,null,null,null,null,null,null,null,null,null,null,null,null,null,null,null,null,0]
[]
[null,null,null,null,40.299999999999997,53.8,5.7,0.2,null,null,null,null,null,null,null,null,null,null,null,null,null,null,null,null,0.2]
[{"$f":"A227+1","v":56},"（５６）","調査対象学年の生徒に対する英語の授業において、前年度までに、英語を読んで（一文一文ではなく全体の）概要や要点を捉える活動を行いましたか",null,34,51,6,0,null,null,null,null,null,null,null,null,null,null,null,null,null,null,null,null,0]
[null,null,null,null,37.4,56,6.6,0,null,null,null,null,null,null,null,null,null,null,null,null,null,null,null,null,0]
[]
[null,null,null,null,46.7,49.8,3.3,0.1,null,null,null,null,null,null,null,null,null,null,null,null,null,null,null,null,0.1]
[{"$f":"A231+1","v":57},"（５７）","調査対象学年の生徒に対する英語の授業において、前年度までに、原稿などの準備をすることなく、（即興で）自分の考えや気持ちなどを英語で伝え合う活動を行いましたか",null,18,41,32,0,null,null,null,null,null,null,null,null,null,null,null,null,null,null,null,null,0]
[null,null,null,null,19.8,45.1,35.200000000000003,0,null,null,null,null,null,null,null,null,null,null,null,null,null,null,null,null,0]
[]
[null,null,null,null,24.5,54.1,20.399999999999999,0.7,null,null,null,null,null,null,null,null,null,null,null,null,null,null,null,null,0.2]
[{"$f":"A235+1","v":58},"（５８）","調査対象学年の生徒に対する英語の授業において、前年度までに、スピーチやプレゼンテーションなど、まとまった内容を英語で発表する活動を行いましたか",null,23,49,18,1,null,null,null,null,null,null,null,null,null,null,null,null,null,null,null,null,0]
[null,null,null,null,25.3,53.8,19.8,1.1000000000000001,null,null,null,null,null,null,null,null,null,null,null,null,null,null,null,null,0]
[]
[null,null,null,null,33.299999999999997,54.3,11.6,0.6,null,null,null,null,null,null,null,null,null,null,null,null,null,null,null,null,0.2]
[{"$f":"A239+1","v":59},"（５９）","調査対象学年の生徒に対する英語の授業において、前年度までに、自分の考えや気持ちなどを英語で書く活動を行いましたか",null,22,54,15,0,null,null,null,null,null,null,null,null,null,null,null,null,null,null,null,null,0]
[null,null,null,null,24.2,59.3,16.5,0,null,null,null,null,null,null,null,null,null,null,null,null,null,null,null,null,0]
[]
[null,null,null,null,34.700000000000003,56.9,8.1,0.2,null,null,null,null,null,null,null,null,null,null,null,null,null,null,null,null,0.2]
[{"$f":"A243+1","v":60},"（６０）","調査対象学年の生徒に対する英語の授業において、前年度までに、聞いたり読んだりしたことについて、生徒同士で英語で問答したり意見を述べ合ったりする活動を行いましたか",null,13,40,34,4,null,null,null,null,null,null,null,null,null,null,null,null,null,null,null,null,0]
[null,null,null,null,14.3,44,37.4,4.4000000000000004,null,null,null,null,null,null,null,null,null,null,null,null,null,null,null,null,0]
[]
[null,null,null,null,25.5,49.4,22.9,1.9,null,null,null,null,null,null,null,null,null,null,null,null,null,null,null,null,0.3]
[{"$f":"A247+1","v":61},"（６１）","調査対象学年の生徒に対する英語の授業において、前年度までに、聞いたり読んだりしたことについて、その内容を英語で書いてまとめたり自分の考えを英語で書いたりする活動を行いましたか",null,11,39,38,3,null,null,null,null,null,null,null,null,null,null,null,null,null,null,null,null,0]
[null,null,null,null,12.1,42.9,41.8,3.3,null,null,null,null,null,null,null,null,null,null,null,null,null,null,null,null,0]
[]
[null,null,null,null,20.7,56,21.7,1.5,null,null,null,null,null,null,null,null,null,null,null,null,null,null,null,null,0.2]
[{"$f":"A251+1","v":62},"（６２）","調査対象学年の生徒に対する英語の授業において、前年度までに、キーボード（画面上に表示されるキーボードやフリック入力も含む）を使って英語を書く活動を行いましたか",null,14,35,40,2,null,null,null,null,null,null,null,null,null,null,null,null,null,null,null,null,0]
[null,null,null,null,15.4,38.5,44,2.2000000000000002,null,null,null,null,null,null,null,null,null,null,null,null,null,null,null,null,0]
[]
[null,null,null,null,21.6,45.4,29.3,3.5,null,null,null,null,null,null,null,null,null,null,null,null,null,null,null,null,0.1]
[{"$f":"A255+1","v":63},"（６３）","英語担当教員とALT（外国語指導助手）との間で、授業のねらいや活動の意図、各学級や一人一人の生徒の実態等について共通認識を持ち、協力して授業を行うことができていると思いますか",null,43,43,5,0,null,null,null,null,null,null,null,null,null,null,null,null,null,null,null,null,0]
[null,null,null,null,47.3,47.3,5.5,0,null,null,null,null,null,null,null,null,null,null,null,null,null,null,null,null,0]
[]
[null,null,null,null,54.2,40.9,3.9,0.8,null,null,null,null,null,null,null,null,null,null,null,null,null,null,null,null,0.2]
[{"$f":"A259+1","v":64},"（６４）","英語の授業以外にも生徒が英語に触れる機会（イングリッシュキャンプ、English Day、昼休みの英語での放送等）をどの程度設けていますか",null,4,4,7,7,22,47,null,null,null,null,null,null,null,null,null,null,null,null,null,null,0]
[null,null,null,null,4.4000000000000004,4.4000000000000004,7.7,7.7,24.2,51.6,null,null,null,null,null,null,null,null,null,null,null,null,null,null,0]
[]
[null,null,null,null,3.7,6.5,8.9,11.2,34.799999999999997,34.799999999999997,null,null,null,null,null,null,null,null,null,null,null,null,null,null,0.1]
[{"$f":"A263+1","v":65},"（６５）","家庭学習の課題（宿題）として、生徒にPC・タブレットなどのICT機器を使用して、英語の学習をどの程度行わせていますか",null,7,8,23,18,22,13,null,null,null,null,null,null,null,null,null,null,null,null,null,null,0]
[null,null,null,null,7.7,8.8000000000000007,25.3,19.8,24.2,14.3,null,null,null,null,null,null,null,null,null,null,null,null,null,null,0]
[]
[null,null,null,null,4.5999999999999996,9.6,24.4,22.7,21.3,17.3,null,null,null,null,null,null,null,null,null,null,null,null,null,null,0.1]
[{"$f":"A267+1","v":66},"（６６）","生徒が学びを深めるための指導改善に向けた取組として、教員がコンピュータなどのICT機器の効果的な使い方を学ぶために必要な情報や研修、自己研鑽の機会等を十分に設けていますか",null,13,59,18,1,null,null,null,null,null,null,null,null,null,null,null,null,null,null,null,null,0]
[null,null,null,null,14.3,64.8,19.8,1.1000000000000001,null,null,null,null,null,null,null,null,null,null,null,null,null,null,null,null,0]
[]
[null,null,null,null,31.8,57.6,10.3,0.3,null,null,null,null,null,null,null,null,null,null,null,null,null,null,null,null,0.1]
[{"$f":"A271+1","v":67},"（６７）","コンピュータなどのICT機器の活用に関して、学校内外において十分に必要なサポートが受けられていますか",null,18,50,19,4,null,null,null,null,null,null,null,null,null,null,null,null,null,null,null,null,0]
[null,null,null,null,19.8,54.9,20.9,4.4000000000000004,null,null,null,null,null,null,null,null,null,null,null,null,null,null,null,null,0]
[]
[null,null,null,null,31.4,53.8,13.5,1.2,null,null,null,null,null,null,null,null,null,null,null,null,null,null,null,null,0.1]
[{"$f":"A275+1","v":68},"（６８）","調査対象学年の生徒に対して、前年度までに、生徒一人一人に配備されたPC・タブレットなどのICT機器を、授業でどの程度活用しましたか",null,34,26,21,7,2,1,null,null,null,null,null,null,null,null,null,null,null,null,null,null,0]
[null,null,null,null,37.4,28.6,23.1,7.7,2.2000000000000002,1.1000000000000001,null,null,null,null,null,null,null,null,null,null,null,null,null,null,0]
[]
[null,null,null,null,59.8,22.5,11.3,5,1.1000000000000001,0.2,null,null,null,null,null,null,null,null,null,null,null,null,null,null,0.2]
[{"$f":"A279+1","v":69},"（６９）","調査対象学年の生徒が自分で調べる場面（ウェブブラウザによるインターネット検索等）では、生徒一人一人に配備されたPC・タブレットなどのICT機器をどの程度使用させていますか",null,23,19,35,13,1,null,null,null,null,null,null,null,null,null,null,null,null,null,null,null,0]
[null,null,null,null,25.3,20.9,38.5,14.3,1.1000000000000001,null,null,null,null,null,null,null,null,null,null,null,null,null,null,null,0]
[]
[null,null,null,null,37.299999999999997,33.9,22.3,5.6,0.8,null,null,null,null,null,null,null,null,null,null,null,null,null,null,null,0.1]
[{"$f":"A283+1","v":70},"（７０）","調査対象学年の生徒が自分の考えをまとめ、発表・表現する場面では、生徒一人一人に配備されたPC・タブレットなどのICT機器をどの程度使用させていますか",null,8,13,28,33,9,null,null,null,null,null,null,null,null,null,null,null,null,null,null,null,0]
[null,null,null,null,8.8000000000000007,14.3,30.8,36.299999999999997,9.9,null,null,null,null,null,null,null,null,null,null,null,null,null,null,null,0]
[]
[null,null,null,null,19.8,28.1,30.1,18.7,3.2,null,null,null,null,null,null,null,null,null,null,null,null,null,null,null,0.1]
[{"$f":"A287+1","v":71},"（７１）","教職員と調査対象学年の生徒がやりとりする場面では、生徒一人一人に配備されたPC・タブレットなどのICT機器をどの程度使用させていますか",null,15,8,27,26,14,null,null,null,null,null,null,null,null,null,null,null,null,null,null,null,1]
[null,null,null,null,16.5,8.8000000000000007,29.7,28.6,15.4,null,null,null,null,null,null,null,null,null,null,null,null,null,null,null,1.1000000000000001]
[]
[null,null,null,null,30.5,23.3,24.6,13.4,8,null,null,null,null,null,null,null,null,null,null,null,null,null,null,null,0.1]
[{"$f":"A291+1","v":72},"（７２）","調査対象学年の生徒同士がやりとりする場面では、生徒一人一人に配備されたPC・タブレットなどのICT機器をどの程度使用させていますか",null,5,7,30,14,35,null,null,null,null,null,null,null,null,null,null,null,null,null,null,null,0]
[null,null,null,null,5.5,7.7,33,15.4,38.5,null,null,null,null,null,null,null,null,null,null,null,null,null,null,null,0]
[]
[null,null,null,null,15.4,20.7,26.8,18.600000000000001,18.5,null,null,null,null,null,null,null,null,null,null,null,null,null,null,null,0.2]
[{"$f":"A295+1","v":73},"（７３）","調査対象学年の生徒が自分の特性や理解度・進度に合わせて課題に取り組む場面では、生徒一人一人に配備されたPC・タブレットなどのICT機器をどの程度使用させていますか",null,14,12,18,28,19,null,null,null,null,null,null,null,null,null,null,null,null,null,null,null,0]
[null,null,null,null,15.4,13.2,19.8,30.8,20.9,null,null,null,null,null,null,null,null,null,null,null,null,null,null,null,0]
[]
[null,null,null,null,16.5,24.3,29.9,19.7,9.4,null,null,null,null,null,null,null,null,null,null,null,null,null,null,null,0.2]
[{"$f":"A299+1","v":74},"（７４）","前年度に、生徒一人一人に配備されたPC・タブレットなどのICT機器を使って、生徒が学校外の施設（他の学校や社会教育施設、民間企業等）にいる人々とやりとりする取組をどの程度実施しましたか",null,2,3,6,4,17,59,null,null,null,null,null,null,null,null,null,null,null,null,null,null,0]
[null,null,null,null,2.2000000000000002,3.3,6.6,4.4000000000000004,18.7,64.8,null,null,null,null,null,null,null,null,null,null,null,null,null,null,0]
[]
[null,null,null,null,2.1,4.5,7.5,8.6999999999999993,22.2,54.8,null,null,null,null,null,null,null,null,null,null,null,null,null,null,0.2]
[{"$f":"A303+1","v":75},"（７５）","生徒一人一人に配備されたPC・タブレットなどの端末を、どの程度家庭で利用できるようにしていますか",null,27,27,31,5,1,0,null,null,null,null,null,null,null,null,null,null,null,null,null,null,0]
[null,null,null,null,29.7,29.7,34.1,5.5,1.1000000000000001,0,null,null,null,null,null,null,null,null,null,null,null,null,null,null,0]
[]
[null,null,null,null,30.9,22.3,35.1,6.8,2.1,2.7,null,null,null,null,null,null,null,null,null,null,null,null,null,null,0.1]
[{"$f":"A307+1","v":76},"（７６）","ICT機器を活用して各教科等における見方・考え方を働かせるような学習指導を行いましたか",null,7,54,30,0,null,null,null,null,null,null,null,null,null,null,null,null,null,null,null,null,0]
[null,null,null,null,7.7,59.3,33,0,null,null,null,null,null,null,null,null,null,null,null,null,null,null,null,null,0]
[]
[null,null,null,null,20.100000000000001,63.2,16,0.4,null,null,null,null,null,null,null,null,null,null,null,null,null,null,null,null,0.2]
[{"$f":"A311+1","v":77},"（７７）","ICT機器やインターネットの利活用について、目的や場面に応じた適切な使い方や、利活用にあたってのルールやマナー（長時間利用防止や情報の取扱いも含む）に関する指導を行いましたか",null,27,62,2,0,null,null,null,null,null,null,null,null,null,null,null,null,null,null,null,null,0]
[null,null,null,null,29.7,68.099999999999994,2.2000000000000002,0,null,null,null,null,null,null,null,null,null,null,null,null,null,null,null,null,0]
[]
[null,null,null,null,52.1,45.1,2.6,0,null,null,null,null,null,null,null,null,null,null,null,null,null,null,null,null,0.1]
[{"$f":"A315+1","v":78},"（７８－１）","生徒一人一人に配備されたPC・タブレットなどのICT機器について、次のような用途でどの程度活用していますか。（１）不登校生徒に対する学習活動等の支援（（７８-２）の授業配信を含む）",null,17,6,9,3,11,27,18,null,null,null,null,null,null,null,null,null,null,null,null,null,0]
[null,null,null,null,18.7,6.6,9.9,3.3,12.1,29.7,19.8,null,null,null,null,null,null,null,null,null,null,null,null,null,0]
[]
[null,null,null,null,25.6,12.3,14,10.4,9.1,18.2,10.3,null,null,null,null,null,null,null,null,null,null,null,null,null,0.1]
[{"$f":"A319+1","v":79},"（７８－２）","生徒一人一人に配備されたPC・タブレットなどのICT機器について、次のような用途でどの程度活用していますか。（２）希望する不登校生徒に対する授業配信",null,13,6,7,0,5,30,30,null,null,null,null,null,null,null,null,null,null,null,null,null,0]
[null,null,null,null,14.3,6.6,7.7,0,5.5,33,33,null,null,null,null,null,null,null,null,null,null,null,null,null,0]
[]
[null,null,null,null,25.1,7.3,5.9,4.0999999999999996,5.6,22.8,29.1,null,null,null,null,null,null,null,null,null,null,null,null,null,0.1]
[{"$f":"A323+1","v":80},"（７８－３）","生徒一人一人に配備されたPC・タブレットなどのICT機器について、次のような用途でどの程度活用していますか。（３）特別な支援を要する生徒に対する学習活動等の支援",null,20,8,10,7,10,22,13,null,null,null,null,null,null,null,null,null,null,null,null,null,1]
[null,null,null,null,22,8.8000000000000007,11,7.7,11,24.2,14.3,null,null,null,null,null,null,null,null,null,null,null,null,null,1.1000000000000001]
[]
[null,null,null,null,32.5,14.1,14.3,7.5,5.3,11.2,14.8,null,null,null,null,null,null,null,null,null,null,null,null,null,0.1]
[{"$f":"A327+1","v":81},"（７８－４）","生徒一人一人に配備されたPC・タブレットなどのICT機器について、次のような用途でどの程度活用していますか。（４）外国人生徒に対する学習活動等の支援",null,3,2,2,0,2,8,73,null,null,null,null,null,null,null,null,null,null,null,null,null,1]
[null,null,null,null,3.3,2.2000000000000002,2.2000000000000002,0,2.2000000000000002,8.8000000000000007,80.2,null,null,null,null,null,null,null,null,null,null,null,null,null,1.1000000000000001]
[]
[null,null,null,null,15.3,5.3,6.9,2.6,1.9,8.5,59.4,null,null,null,null,null,null,null,null,null,null,null,null,null,0.2]
[{"$f":"A331+1","v":82},"（７８－５）","生徒一人一人に配備されたPC・タブレットなどのICT機器について、次のような用途でどの程度活用していますか。（５）生徒の心身の状況の把握",null,22,3,1,2,10,37,15,null,null,null,null,null,null,null,null,null,null,null,null,null,1]
[null,null,null,null,24.2,3.3,1.1000000000000001,2.2000000000000002,11,40.700000000000003,16.5,null,null,null,null,null,null,null,null,null,null,null,null,null,1.1000000000000001]
[]
[null,null,null,null,35.4,2.4,5,9.3000000000000007,8.6,30.5,8.6,null,null,null,null,null,null,null,null,null,null,null,null,null,0.1]
[{"$f":"A335+1","v":83},"（７８－６）","生徒一人一人に配備されたPC・タブレットなどのICT機器について、次のような用途でどの程度活用していますか。（６）生徒に対するオンラインを活用した相談・支援",null,2,1,1,3,6,64,14,null,null,null,null,null,null,null,null,null,null,null,null,null,0]
[null,null,null,null,2.2000000000000002,1.1000000000000001,1.1000000000000001,3.3,6.6,70.3,15.4,null,null,null,null,null,null,null,null,null,null,null,null,null,0]
[]
[null,null,null,null,10.7,2.2000000000000002,4.5,7.6,8.9,48.3,17.600000000000001,null,null,null,null,null,null,null,null,null,null,null,null,null,0.1]
[{"$f":"A339+1","v":84},"（７９）","障害のある生徒が一人一人に配備されたPC・タブレットなどのICT機器を活用する際、入出力支援装置等を活用し、障害種・障害の状態や特性及び心身の発達の段階等に応じた支援をどの程度行いましたか",null,4,9,9,9,60,null,null,null,null,null,null,null,null,null,null,null,null,null,null,null,0]
[null,null,null,null,4.4000000000000004,9.9,9.9,9.9,65.900000000000006,null,null,null,null,null,null,null,null,null,null,null,null,null,null,null,0]
[]
[null,null,null,null,5.2,10.7,8.3000000000000007,4.9000000000000004,70.8,null,null,null,null,null,null,null,null,null,null,null,null,null,null,null,0.1]
[{"$f":"A343+1","v":85},"（８０）","前年度までに、調査対象学年の生徒に対する授業の中で、発達障害を含む障害のある生徒も含めた、多様な生徒が通常の学級に在籍していることを前提に、学級全体での指導の工夫を行いましたか",null,33,56,2,null,null,null,null,null,null,null,null,null,null,null,null,null,null,null,null,null,0]
[null,null,null,null,36.299999999999997,61.5,2.2000000000000002,null,null,null,null,null,null,null,null,null,null,null,null,null,null,null,null,null,0]
[]
[null,null,null,null,53.9,44,2,null,null,null,null,null,null,null,null,null,null,null,null,null,null,null,null,null,0.1]
[{"$f":"A347+1","v":86},"（８１）","前年度までに、調査対象学年の生徒に対する授業の中で、発達障害を含む障害のある生徒に対する個に応じた指導内容や指導方法の工夫として、当該生徒が学習活動を行う場合に生じる「困難さ」に対する「指導上の工夫の意図」を理解し、個に応じた様々な「手立て」を講じましたか",null,21,63,7,null,null,null,null,null,null,null,null,null,null,null,null,null,null,null,null,null,0]
[null,null,null,null,23.1,69.2,7.7,null,null,null,null,null,null,null,null,null,null,null,null,null,null,null,null,null,0]
[]
[null,null,null,null,39.299999999999997,56.7,3.8,null,null,null,null,null,null,null,null,null,null,null,null,null,null,null,null,null,0.2]
[{"$f":"A351+1","v":87},"（８２－１）","学校では、調査対象学年の生徒のうち、発達障害を含む障害のある生徒に対する授業の中で、合理的配慮の提供として、個々の障害の状態や特性及び心身の発達の段階に応じて、本人や保護者の意向を踏まえ、次のことをどの程度行いましたか。（１）人的支援の配慮",null,21,35,5,30,null,null,null,null,null,null,null,null,null,null,null,null,null,null,null,null,0]
[null,null,null,null,23.1,38.5,5.5,33,null,null,null,null,null,null,null,null,null,null,null,null,null,null,null,null,0]
[]
[null,null,null,null,37.200000000000003,36.200000000000003,2.8,23.7,null,null,null,null,null,null,null,null,null,null,null,null,null,null,null,null,0.1]
[{"$f":"A355+1","v":88},"（８２－２）","学校では、調査対象学年の生徒のうち、発達障害を含む障害のある生徒に対する授業の中で、合理的配慮の提供として、個々の障害の状態や特性及び心身の発達の段階に応じて、本人や保護者の意向を踏まえ、次のことをどの程度行いましたか。（２）情報の取得、利用及び意思疎通への配慮",null,13,34,0,44,null,null,null,null,null,null,null,null,null,null,null,null,null,null,null,null,0]
[null,null,null,null,14.3,37.4,0,48.4,null,null,null,null,null,null,null,null,null,null,null,null,null,null,null,null,0]
[]
[null,null,null,null,18.899999999999999,30.4,2,48.6,null,null,null,null,null,null,null,null,null,null,null,null,null,null,null,null,0.1]
[{"$f":"A359+1","v":89},"（８２－３）","学校では、調査対象学年の生徒のうち、発達障害を含む障害のある生徒に対する授業の中で、合理的配慮の提供として、個々の障害の状態や特性及び心身の発達の段階に応じて、本人や保護者の意向を踏まえ、次のことをどの程度行いましたか。（３）ルール・慣行の柔軟な変更（学習内容に関わるものを除く）",null,22,23,2,44,null,null,null,null,null,null,null,null,null,null,null,null,null,null,null,null,0]
[null,null,null,null,24.2,25.3,2.2000000000000002,48.4,null,null,null,null,null,null,null,null,null,null,null,null,null,null,null,null,0]
[]
[null,null,null,null,28,30.9,1.9,39,null,null,null,null,null,null,null,null,null,null,null,null,null,null,null,null,0.2]
[{"$f":"A363+1","v":90},"（８２－４）","学校では、調査対象学年の生徒のうち、発達障害を含む障害のある生徒に対する授業の中で、合理的配慮の提供として、個々の障害の状態や特性及び心身の発達の段階に応じて、本人や保護者の意向を踏まえ、次のことをどの程度行いましたか。（４）学習内容の柔軟な変更や調整",null,15,23,2,51,null,null,null,null,null,null,null,null,null,null,null,null,null,null,null,null,0]
[null,null,null,null,16.5,25.3,2.2000000000000002,56,null,null,null,null,null,null,null,null,null,null,null,null,null,null,null,null,0]
[]
[null,null,null,null,26.2,28.5,1.4,43.7,null,null,null,null,null,null,null,null,null,null,null,null,null,null,null,null,0.1]
[{"$f":"A367+1","v":91},"（８３）","学校では、調査対象学年の生徒のうち、日本語指導が必要な生徒に対して、特別な配慮に基づく指導をどの程度行っていますか",null,4,5,0,0,82,null,null,null,null,null,null,null,null,null,null,null,null,null,null,null,0]
[null,null,null,null,4.4000000000000004,5.5,0,0,90.1,null,null,null,null,null,null,null,null,null,null,null,null,null,null,null,0]
[]
[null,null,null,null,14.3,17.8,1.8,0.6,65.400000000000006,null,null,null,null,null,null,null,null,null,null,null,null,null,null,null,0.1]
[{"$f":"A371+1","v":92},"（８４）","前年度までに、近隣等の小学校と、教科の教育課程の接続や、教科に関する共通の目標設定等、教育課程に関する共通の取組をどの程度行いましたか",null,15,33,38,5,null,null,null,null,null,null,null,null,null,null,null,null,null,null,null,null,0]
[null,null,null,null,16.5,36.299999999999997,41.8,5.5,null,null,null,null,null,null,null,null,null,null,null,null,null,null,null,null,0]
[]
[null,null,null,null,28.8,43.2,22.1,5.8,null,null,null,null,null,null,null,null,null,null,null,null,null,null,null,null,0.1]
[{"$f":"A375+1","v":93},"（８５）","調査対象学年の生徒に対して、前年度に、職場体験活動を何日程度行いましたか",null,61,10,18,1,0,1,null,null,null,null,null,null,null,null,null,null,null,null,null,null,0]
[null,null,null,null,67,11,19.8,1.1000000000000001,0,1.1000000000000001,null,null,null,null,null,null,null,null,null,null,null,null,null,null,0]
[]
[null,null,null,null,18.7,43,27.7,2.5,6.8,1.2,null,null,null,null,null,null,null,null,null,null,null,null,null,null,0.1]
[{"$f":"A379+1","v":94},"（８６）","コミュニティ・スクールの仕組みや地域学校協働活動等の取組を活用して、学校の運営や教育活動に関し、生徒が意見を表明することが出来る取組を行いましたか",null,10,31,26,24,null,null,null,null,null,null,null,null,null,null,null,null,null,null,null,null,0]
[null,null,null,null,11,34.1,28.6,26.4,null,null,null,null,null,null,null,null,null,null,null,null,null,null,null,null,0]
[]
[null,null,null,null,16.7,32.299999999999997,28.2,22.7,null,null,null,null,null,null,null,null,null,null,null,null,null,null,null,null,0.1]
[{"$f":"A383+1","v":95},"（８７）","コミュニティ・スクールや地域学校協働活動等の取組によって、学校と地域や保護者の相互理解が深まりましたか",null,17,54,7,0,13,null,null,null,null,null,null,null,null,null,null,null,null,null,null,null,0]
[null,null,null,null,18.7,59.3,7.7,0,14.3,null,null,null,null,null,null,null,null,null,null,null,null,null,null,null,0]
[]
[null,null,null,null,28,56.4,6.5,1,8,null,null,null,null,null,null,null,null,null,null,null,null,null,null,null,0.1]
[{"$f":"A387+1","v":96},"（８８）","コミュニティ・スクールや地域学校協働活動等の取組は、学校教育活動の充実や学校課題の解決だけではなく、地域及び家庭の課題解決や地域活動の担い手育成に貢献していたと思いますか",null,15,54,8,0,14,null,null,null,null,null,null,null,null,null,null,null,null,null,null,null,0]
[null,null,null,null,16.5,59.3,8.8000000000000007,0,15.4,null,null,null,null,null,null,null,null,null,null,null,null,null,null,null,0]
[]
[null,null,null,null,26.1,55.8,9.1999999999999993,1.2,7.7,null,null,null,null,null,null,null,null,null,null,null,null,null,null,null,0.1]
[{"$f":"A391+1","v":97},"（８９）","調査対象学年の生徒に対して、前年度までに、家庭学習の取組として、学校では、生徒に家庭での学習方法等を具体例を挙げながら教えましたか",null,29,57,5,0,null,null,null,null,null,null,null,null,null,null,null,null,null,null,null,null,0]
[null,null,null,null,31.9,62.6,5.5,0,null,null,null,null,null,null,null,null,null,null,null,null,null,null,null,null,0]
[]
[null,null,null,null,33.4,57.8,8.4,0.3,null,null,null,null,null,null,null,null,null,null,null,null,null,null,null,null,0.1]
[{"$f":"A395+1","v":98},"（９０）","調査対象学年の生徒に対して、前年度までに、家庭学習について、生徒が自分で学ぶ内容や学び方を決めるなど、工夫して取り組めるような活動を行いましたか",null,16,65,10,0,null,null,null,null,null,null,null,null,null,null,null,null,null,null,null,null,0]
[null,null,null,null,17.600000000000001,71.400000000000006,11,0,null,null,null,null,null,null,null,null,null,null,null,null,null,null,null,null,0]
[]
[null,null,null,null,26.8,58.2,14.4,0.4,null,null,null,null,null,null,null,null,null,null,null,null,null,null,null,null,0.2]
[{"$f":"A399+1","v":99},"（９１）","調査対象学年の生徒に対して、前年度までに、学校では、生徒が行った家庭学習の課題について、その後の教員の指導改善や生徒の学習改善に生かしましたか",null,15,59,17,0,null,null,null,null,null,null,null,null,null,null,null,null,null,null,null,null,0]
[null,null,null,null,16.5,64.8,18.7,0,null,null,null,null,null,null,null,null,null,null,null,null,null,null,null,null,0]
[]
[null,null,null,null,22.2,61,16.100000000000001,0.5,null,null,null,null,null,null,null,null,null,null,null,null,null,null,null,null,0.1]
[{"$f":"A403+1","v":100},"（９２）","令和７年度全国学力・学習状況調査の自校の結果について、調査対象学年・教科だけではなく、学校全体で教育活動を改善するために活用しましたか",null,12,77,2,null,null,null,null,null,null,null,null,null,null,null,null,null,null,null,null,null,0]
[null,null,null,null,13.2,84.6,2.2000000000000002,null,null,null,null,null,null,null,null,null,null,null,null,null,null,null,null,null,0]
[]
[null,null,null,null,29.8,63.8,6.3,null,null,null,null,null,null,null,null,null,null,null,null,null,null,null,null,null,0.1]
[{"$f":"A407+1","v":101},"（９３）","令和７年度全国学力・学習状況調査の自校の結果について、保護者や地域の人たちに対して公表や説明をどの程度行いましたか（学校のホームページや学校だよりなどへの掲載、保護者会等での説明を含む）",null,12,61,18,null,null,null,null,null,null,null,null,null,null,null,null,null,null,null,null,null,0]
[null,null,null,null,13.2,67,19.8,null,null,null,null,null,null,null,null,null,null,null,null,null,null,null,null,null,0]
[]
[null,null,null,null,25.7,58.5,15.6,null,null,null,null,null,null,null,null,null,null,null,null,null,null,null,null,null,0.1]
[{"$f":"A411+1","v":102}]
[]
[]
[]
[{"$f":"A415+1","v":103}]
[]
[]
[]
[{"$f":"A419+1","v":104}]
[]
[]
[]
[{"$f":"A423+1","v":105}]
[]
[]
[]
[{"$f":"A427+1","v":106}]
[]
[]
[]
[{"$f":"A431+1","v":107}]
[]
[]
[]
[{"$f":"A435+1","v":108}]
[]
[]
[]
[{"$f":"A439+1","v":109}]
[]
[]
[]
[{"$f":"A443+1","v":110}]
[]
[]
[]
[{"$f":"A447+1","v":111}]
[]
[]
[null,null,null,null,null,null,null,null,null,null,null,null,null,null,null,null,null,null,null,null,null,null,null,null,null,{"$f":"A451-5","v":106}]
[167]
[]
[]
[168]
[]
[]
[169]
[]
[]
[170]
[]
[]
[171]
[]
[]
[172]
[]
[]
[173]
[]
[]
[174]
[]
[]
[175]

{"sheet":"分析補助シート（学校質問）","index":1,"n_rows":111,"n_cols":25,"rows_kept":111,"cut":false,"hidden":false,"merged":[[3,0,4,0],[3,24,4,24],[3,1,4,1],[3,3,4,3],[3,2,4,2],[3,4,3,13]]}
[{"$f":"入力シート!B1","v":"令和８年度全国学力・学習状況調査"}]
["学校用分析補助シート中学校［学校質問］"]
[]
["№","質問\n番号","質問事項","貴校\n回答","選　択　肢",null,null,null,null,null,null,null,null,null,null,null,null,null,null,null,null,null,null,null,"その他\r\n無回答"]
[null,null,null,null,1,2,3,4,5,6,7,8,9,10,11,12,13,14,15,16,17,18,19,20]
[1,{"$f":"VLOOKUP(A6+5,入力シート!$A$11:$J$454,2,FALSE)","v":"（６）"},{"$f":"VLOOKUP(A6+5,入力シート!$A$11:$J$454,3,FALSE)","v":"調査対象学年の生徒のうち、就学援助を受けている生徒の割合"},null,6.5,11.8,23.5,24.2,15,8.5,4.4000000000000004,4.5,1.5,null,null,null,null,null,null,null,null,null,null,null,0.2]
[2,{"$f":"VLOOKUP(A7+5,入力シート!$A$11:$J$454,2,FALSE)","v":"（７）"},{"$f":"VLOOKUP(A7+5,入力シート!$A$11:$J$454,3,FALSE)","v":"調査対象学年の生徒は、熱意をもって勉強していると思いますか"},null,19.7,65.400000000000006,14.2,0.6,null,null,null,null,null,null,null,null,null,null,null,null,null,null,null,null,0.1]
[3,{"$f":"VLOOKUP(A8+5,入力シート!$A$11:$J$454,2,FALSE)","v":"（８）"},{"$f":"VLOOKUP(A8+5,入力シート!$A$11:$J$454,3,FALSE)","v":"調査対象学年の生徒は、授業中の私語が少なく、落ち着いていると思いますか"},null,43.6,47.1,8.6,0.7,null,null,null,null,null,null,null,null,null,null,null,null,null,null,null,null,0]
[4,{"$f":"VLOOKUP(A9+5,入力シート!$A$11:$J$454,2,FALSE)","v":"（９）"},{"$f":"VLOOKUP(A9+5,入力シート!$A$11:$J$454,3,FALSE)","v":"調査対象学年の生徒は、礼儀正しいと思いますか"},null,34.1,56.3,9,0.5,null,null,null,null,null,null,null,null,null,null,null,null,null,null,null,null,0.1]
[5,{"$f":"VLOOKUP(A10+5,入力シート!$A$11:$J$454,2,FALSE)","v":"（１０）"},{"$f":"VLOOKUP(A10+5,入力シート!$A$11:$J$454,3,FALSE)","v":"調査対象学年の生徒に対して、前年度までに、将来就きたい仕事や夢について考えさせる指導を行いましたか"},null,44.9,52.6,2.2999999999999998,0.1,null,null,null,null,null,null,null,null,null,null,null,null,null,null,null,null,0.1]
[6,{"$f":"VLOOKUP(A11+5,入力シート!$A$11:$J$454,2,FALSE)","v":"（１１）"},{"$f":"VLOOKUP(A11+5,入力シート!$A$11:$J$454,3,FALSE)","v":"調査対象学年の生徒に対して、前年度までに、学校生活の中で、生徒一人一人のよい点や可能性を見付け評価する（褒めるなど）取組を行いましたか"},null,54.4,43.9,1.6,0,null,null,null,null,null,null,null,null,null,null,null,null,null,null,null,null,0.1]
[7,{"$f":"VLOOKUP(A12+5,入力シート!$A$11:$J$454,2,FALSE)","v":"（１２）"},{"$f":"VLOOKUP(A12+5,入力シート!$A$11:$J$454,3,FALSE)","v":"近視の予防の一環として、学校の休み時間（昼休みを含む）や放課後などの時間（部活動の朝練・放課後練習を含む）に屋外に出ることや、読書や電子機器の使用などの近い所を見る作業に当たっての配慮事項（対象から３０ｃｍ以上目を離す、３０分に１回は目を休めるなど）について指導していますか"},null,24.8,14.3,33.1,27.7,null,null,null,null,null,null,null,null,null,null,null,null,null,null,null,null,0.1]
[8,{"$f":"VLOOKUP(A13+5,入力シート!$A$11:$J$454,2,FALSE)","v":"（１３）"},{"$f":"VLOOKUP(A13+5,入力シート!$A$11:$J$454,3,FALSE)","v":"スクールカウンセラーやスクールソーシャルワーカーによる教育相談に関して、生徒が相談したい時に相談できる体制となっていますか"},null,73.7,23.5,2.1,0.6,null,null,null,null,null,null,null,null,null,null,null,null,null,null,null,null,0.1]
[9,{"$f":"VLOOKUP(A14+5,入力シート!$A$11:$J$454,2,FALSE)","v":"（１４）"},{"$f":"VLOOKUP(A14+5,入力シート!$A$11:$J$454,3,FALSE)","v":"前年度に、教員が授業で問題を抱えている場合、率先してそのことについて話し合うことを行いましたか"},null,31,34.200000000000003,21.8,8.1999999999999993,0.2,4.3,null,null,null,null,null,null,null,null,null,null,null,null,null,null,0.2]
[10,{"$f":"VLOOKUP(A15+5,入力シート!$A$11:$J$454,2,FALSE)","v":"（１５）"},{"$f":"VLOOKUP(A15+5,入力シート!$A$11:$J$454,3,FALSE)","v":"前年度に、教員が学級の問題を抱えている場合、ともに問題解決に当たることを行いましたか"},null,47.4,31.6,13.2,5.0999999999999996,0.2,2.4,null,null,null,null,null,null,null,null,null,null,null,null,null,null,0.2]
[11,{"$f":"VLOOKUP(A16+5,入力シート!$A$11:$J$454,2,FALSE)","v":"（１６）"},{"$f":"VLOOKUP(A16+5,入力シート!$A$11:$J$454,3,FALSE)","v":"ICTを活用した校務の効率化（事務の軽減）の優良事例を十分に取り入れていますか"},null,40.4,58.9,0.6,null,null,null,null,null,null,null,null,null,null,null,null,null,null,null,null,null,0.1]
[12,{"$f":"VLOOKUP(A17+5,入力シート!$A$11:$J$454,2,FALSE)","v":"（１７）"},{"$f":"VLOOKUP(A17+5,入力シート!$A$11:$J$454,3,FALSE)","v":"生徒の姿や地域の現状等に関する調査や各種データなどに基づき、教育課程を編成し、実施し、評価して改善を図る一連のPDCAサイクルを確立していますか"},null,38.6,57.3,3.8,0,null,null,null,null,null,null,null,null,null,null,null,null,null,null,null,null,0.2]
[13,{"$f":"VLOOKUP(A18+5,入力シート!$A$11:$J$454,2,FALSE)","v":"（１８）"},{"$f":"VLOOKUP(A18+5,入力シート!$A$11:$J$454,3,FALSE)","v":"指導計画の作成に当たっては、教育内容と、教育活動に必要な人的・物的資源等を、地域等の外部の資源を含めて活用しながら効果的に組み合わせていますか"},null,37.6,56.1,6.1,0.1,null,null,null,null,null,null,null,null,null,null,null,null,null,null,null,null,0.1]
[14,{"$f":"VLOOKUP(A19+5,入力シート!$A$11:$J$454,2,FALSE)","v":"（１９）"},{"$f":"VLOOKUP(A19+5,入力シート!$A$11:$J$454,3,FALSE)","v":"学校運営上の課題への対応に当たっては、各教職員（支援スタッフを含む）の専門性を活かせるよう適切な役割分担や連携協働をしていますか"},null,57.4,41.7,0.8,0,null,null,null,null,null,null,null,null,null,null,null,null,null,null,null,null,0.1]
[15,{"$f":"VLOOKUP(A20+5,入力シート!$A$11:$J$454,2,FALSE)","v":"（２０）"},{"$f":"VLOOKUP(A20+5,入力シート!$A$11:$J$454,3,FALSE)","v":"今までの取組をそのまま踏襲するのではなく、新しい取組を導入したり、提案をしたりしてくる教職員が多いですか"},null,35.200000000000003,55.5,9,0.2,null,null,null,null,null,null,null,null,null,null,null,null,null,null,null,null,0.1]
[16,{"$f":"VLOOKUP(A21+5,入力シート!$A$11:$J$454,2,FALSE)","v":"（２１）"},{"$f":"VLOOKUP(A21+5,入力シート!$A$11:$J$454,3,FALSE)","v":"教職員が困っているとき、管理職と教職員との間で随時相談できるなど組織的に対応する体制を構築していますか"},null,66.099999999999994,32.9,0.9,0.1,null,null,null,null,null,null,null,null,null,null,null,null,null,null,null,null,0.1]
[17,{"$f":"VLOOKUP(A22+5,入力シート!$A$11:$J$454,2,FALSE)","v":"（２２）"},{"$f":"VLOOKUP(A22+5,入力シート!$A$11:$J$454,3,FALSE)","v":"特定の教員が学級担任を務めるのではなく、複数の教員が共同で学級担任を務める体制（いわゆる、チーム担任制、グループ担任制）を実施していますか"},null,14.7,6.8,12.4,66,null,null,null,null,null,null,null,null,null,null,null,null,null,null,null,null,0.1]
[18,{"$f":"VLOOKUP(A23+5,入力シート!$A$11:$J$454,2,FALSE)","v":"（２３）"},{"$f":"VLOOKUP(A23+5,入力シート!$A$11:$J$454,3,FALSE)","v":"ストレスチェックの結果の活用や研修など、教職員自身の心身の健康状態につき振り返り対処する機会が提供されていますか"},null,36.5,49.6,12.4,1.4,null,null,null,null,null,null,null,null,null,null,null,null,null,null,null,null,0.1]
[19,{"$f":"VLOOKUP(A24+5,入力シート!$A$11:$J$454,2,FALSE)","v":"（２４）"},{"$f":"VLOOKUP(A24+5,入力シート!$A$11:$J$454,3,FALSE)","v":"生徒にとって、学校施設全体として、生徒が学びや生活がしやすく、居心地のよい建物だと思いますか"},null,33.1,48.1,15.9,2.7,null,null,null,null,null,null,null,null,null,null,null,null,null,null,null,null,0.1]
[20,{"$f":"VLOOKUP(A25+5,入力シート!$A$11:$J$454,2,FALSE)","v":"（２５）"},{"$f":"VLOOKUP(A25+5,入力シート!$A$11:$J$454,3,FALSE)","v":"教職員にとって、学校施設全体として、教職員が働きやすく、居心地のよい建物だと思いますか"},null,28.6,50.2,18,3.2,null,null,null,null,null,null,null,null,null,null,null,null,null,null,null,null,0.1]
[21,{"$f":"VLOOKUP(A26+5,入力シート!$A$11:$J$454,2,FALSE)","v":"（２６）"},{"$f":"VLOOKUP(A26+5,入力シート!$A$11:$J$454,3,FALSE)","v":"調査対象学年の生徒は、授業では、課題の解決に向けて、自分で考え、自分から取り組むことができていると思いますか"},null,19.100000000000001,68.099999999999994,12.4,0.3,null,null,null,null,null,null,null,null,null,null,null,null,null,null,null,null,0.1]
[22,{"$f":"VLOOKUP(A27+5,入力シート!$A$11:$J$454,2,FALSE)","v":"（２７）"},{"$f":"VLOOKUP(A27+5,入力シート!$A$11:$J$454,3,FALSE)","v":"調査対象学年の生徒は、授業において、自らの考えがうまく伝わるよう、資料や文章、話の組立てなどを工夫して、発言や発表を行うことができていると思いますか"},null,15.2,66.2,18.3,0.2,null,null,null,null,null,null,null,null,null,null,null,null,null,null,null,null,0.1]
[23,{"$f":"VLOOKUP(A28+5,入力シート!$A$11:$J$454,2,FALSE)","v":"（２８）"},{"$f":"VLOOKUP(A28+5,入力シート!$A$11:$J$454,3,FALSE)","v":"調査対象学年の生徒は、学級やグループでの話合いなどの活動で、自分の考えを相手にしっかりと伝えることができていると思いますか"},null,23.5,65.900000000000006,10.199999999999999,0.2,null,null,null,null,null,null,null,null,null,null,null,null,null,null,null,null,0.1]
[24,{"$f":"VLOOKUP(A29+5,入力シート!$A$11:$J$454,2,FALSE)","v":"（２９）"},{"$f":"VLOOKUP(A29+5,入力シート!$A$11:$J$454,3,FALSE)","v":"調査対象学年の生徒は、授業や学校生活では、友達や周りの人の考えを大切にして、お互いに協力しながら課題の解決に取り組めていると思いますか"},null,32.5,62.4,4.9000000000000004,0.1,null,null,null,null,null,null,null,null,null,null,null,null,null,null,null,null,0.1]
[25,{"$f":"VLOOKUP(A30+5,入力シート!$A$11:$J$454,2,FALSE)","v":"（３０）"},{"$f":"VLOOKUP(A30+5,入力シート!$A$11:$J$454,3,FALSE)","v":"調査対象学年の生徒は、授業では、自分で学ぶ内容を決め、計画を立てて学ぶ活動を行っていると思いますか"},null,8.6999999999999993,48,39.9,3.4,null,null,null,null,null,null,null,null,null,null,null,null,null,null,null,null,0.1]
[26,{"$f":"VLOOKUP(A31+5,入力シート!$A$11:$J$454,2,FALSE)","v":"（３１）"},{"$f":"VLOOKUP(A31+5,入力シート!$A$11:$J$454,3,FALSE)","v":"調査対象学年の生徒に対して、前年度までに、学習指導において、生徒一人一人に応じて、学習課題や活動を工夫しましたか"},null,23.4,64.099999999999994,12.2,0.2,null,null,null,null,null,null,null,null,null,null,null,null,null,null,null,null,0.1]
[27,{"$f":"VLOOKUP(A32+5,入力シート!$A$11:$J$454,2,FALSE)","v":"（３２）"},{"$f":"VLOOKUP(A32+5,入力シート!$A$11:$J$454,3,FALSE)","v":"調査対象学年の生徒に対して、前年度までに、学習指導において、生徒が、それぞれのよさを生かしながら、他者と情報交換して話し合ったり、異なる視点から考えたり、協力し合ったりできるように学習課題や活動を工夫しましたか"},null,31.3,63.3,5.2,0.1,null,null,null,null,null,null,null,null,null,null,null,null,null,null,null,null,0.1]
[28,{"$f":"VLOOKUP(A33+5,入力シート!$A$11:$J$454,2,FALSE)","v":"（３３）"},{"$f":"VLOOKUP(A33+5,入力シート!$A$11:$J$454,3,FALSE)","v":"調査対象学年の生徒に対して、前年度までに、授業において、生徒自ら学級やグループで課題を設定し、その解決に向けて話し合い、まとめ、表現するなどの学習活動を取り入れましたか"},null,25.4,60,14.3,0.3,null,null,null,null,null,null,null,null,null,null,null,null,null,null,null,null,0.1]
[29,{"$f":"VLOOKUP(A34+5,入力シート!$A$11:$J$454,2,FALSE)","v":"（３４）"},{"$f":"VLOOKUP(A34+5,入力シート!$A$11:$J$454,3,FALSE)","v":"調査対象学年の生徒に対して、前年度までに、習得・活用及び探究の学習過程を見通した指導方法の改善及び工夫をしましたか"},null,19.7,66.400000000000006,13.6,0.2,null,null,null,null,null,null,null,null,null,null,null,null,null,null,null,null,0.2]
[30,{"$f":"VLOOKUP(A35+5,入力シート!$A$11:$J$454,2,FALSE)","v":"（３５）"},{"$f":"VLOOKUP(A35+5,入力シート!$A$11:$J$454,3,FALSE)","v":"調査対象学年の生徒に対して、前年度までに、関連する既習事項を振り返り、知識を総合的に関連付ける学習活動を行いましたか"},null,23.3,67.3,9.1,0.1,null,null,null,null,null,null,null,null,null,null,null,null,null,null,null,null,0.2]
[31,{"$f":"VLOOKUP(A36+5,入力シート!$A$11:$J$454,2,FALSE)","v":"（３６）"},{"$f":"VLOOKUP(A36+5,入力シート!$A$11:$J$454,3,FALSE)","v":"調査対象学年の生徒に対して、前年度までに、各教科等で身に付けたことを、様々な課題の解決に生かすことができるような機会を設けましたか"},null,15,64.900000000000006,19.7,0.2,null,null,null,null,null,null,null,null,null,null,null,null,null,null,null,null,0.1]
[32,{"$f":"VLOOKUP(A37+5,入力シート!$A$11:$J$454,2,FALSE)","v":"（３７）"},{"$f":"VLOOKUP(A37+5,入力シート!$A$11:$J$454,3,FALSE)","v":"調査対象学年の生徒に対して、前年度までに、教科等の指導に当たって、地域や社会で起こっている問題や出来事を学習の題材として取り扱いましたか"},null,18.600000000000001,63.9,17,0.3,null,null,null,null,null,null,null,null,null,null,null,null,null,null,null,null,0.1]
[33,{"$f":"VLOOKUP(A38+5,入力シート!$A$11:$J$454,2,FALSE)","v":"（３８）"},{"$f":"VLOOKUP(A38+5,入力シート!$A$11:$J$454,3,FALSE)","v":"調査対象学年の生徒に対して、前年度に、本やインターネット、図書館資料などを活用した授業を計画的に行いましたか"},null,29.7,37.200000000000003,24.9,7.7,0.4,null,null,null,null,null,null,null,null,null,null,null,null,null,null,null,0.1]
[34,{"$f":"VLOOKUP(A39+5,入力シート!$A$11:$J$454,2,FALSE)","v":"（３９）"},{"$f":"VLOOKUP(A39+5,入力シート!$A$11:$J$454,3,FALSE)","v":"調査対象学年の生徒に対して、総合的な学習の時間において、課題の設定からまとめ・表現に至る探究の過程を意識した指導をしていますか"},null,38.1,53.2,8.4,0.2,null,null,null,null,null,null,null,null,null,null,null,null,null,null,null,null,0.1]
[35,{"$f":"VLOOKUP(A40+5,入力シート!$A$11:$J$454,2,FALSE)","v":"（４０）"},{"$f":"VLOOKUP(A40+5,入力シート!$A$11:$J$454,3,FALSE)","v":"調査対象学年の生徒に対して、総合的な学習の時間において、生徒一人一人がICT機器を活用することにより、探究の過程の質が向上することを意識した指導をしていますか"},null,46,47.9,5.8,0.1,null,null,null,null,null,null,null,null,null,null,null,null,null,null,null,null,0.1]
[36,{"$f":"VLOOKUP(A41+5,入力シート!$A$11:$J$454,2,FALSE)","v":"（４１）"},{"$f":"VLOOKUP(A41+5,入力シート!$A$11:$J$454,3,FALSE)","v":"調査対象学年の生徒に対して、学級生活をよりよくするために、学級活動で話し合い、互いの意見のよさを生かして解決方法等を合意形成できるような指導を行っていますか"},null,36.299999999999997,57.2,6.2,0.1,null,null,null,null,null,null,null,null,null,null,null,null,null,null,null,null,0.1]
[37,{"$f":"VLOOKUP(A42+5,入力シート!$A$11:$J$454,2,FALSE)","v":"（４２）"},{"$f":"VLOOKUP(A42+5,入力シート!$A$11:$J$454,3,FALSE)","v":"調査対象学年の生徒に対して、学級活動の授業を通して、今、努力すべきことを学級での話合いを生かして、一人一人の生徒が意思決定できるような指導を行っていますか"},null,30.1,61.8,7.8,0.2,null,null,null,null,null,null,null,null,null,null,null,null,null,null,null,null,0.1]
[38,{"$f":"VLOOKUP(A43+5,入力シート!$A$11:$J$454,2,FALSE)","v":"（４３）"},{"$f":"VLOOKUP(A43+5,入力シート!$A$11:$J$454,3,FALSE)","v":"調査対象学年の生徒に対して、特別の教科 道徳において、取り上げる題材を生徒自らが自分自身の問題として捉え、考え、話し合うような指導の工夫をしていますか"},null,40.6,56.2,3,0.1,null,null,null,null,null,null,null,null,null,null,null,null,null,null,null,null,0.1]
[39,{"$f":"VLOOKUP(A44+5,入力シート!$A$11:$J$454,2,FALSE)","v":"（４４）"},{"$f":"VLOOKUP(A44+5,入力シート!$A$11:$J$454,3,FALSE)","v":"調査対象学年の生徒に対して、前年度までに、創意工夫の中で学習評価の妥当性や信頼性が高められるよう、評価規準や評価方法の教員間での明確化・共有化や、学年会や教科等部会等の校内組織の活用等、組織的かつ計画的な取組を行いましたか"},null,33.4,59.3,7.1,0.1,null,null,null,null,null,null,null,null,null,null,null,null,null,null,null,null,0.2]
[40,{"$f":"VLOOKUP(A45+5,入力シート!$A$11:$J$454,2,FALSE)","v":"（４５）"},{"$f":"VLOOKUP(A45+5,入力シート!$A$11:$J$454,3,FALSE)","v":"調査対象学年の生徒に対して、前年度までに、国語の授業で、学習状況に即して生徒のよい点や進歩の状況を積極的に伝えることを行いましたか"},null,40.200000000000003,56.6,2.9,0.1,null,null,null,null,null,null,null,null,null,null,null,null,null,null,null,null,0.2]
[41,{"$f":"VLOOKUP(A46+5,入力シート!$A$11:$J$454,2,FALSE)","v":"（４６）"},{"$f":"VLOOKUP(A46+5,入力シート!$A$11:$J$454,3,FALSE)","v":"調査対象学年の生徒に対して、前年度までに、国語の授業で、生徒に学習の状況について改善すべき点を伝え、改善できるように手立てを講じることを行いましたか"},null,37.299999999999997,59.6,2.8,0.1,null,null,null,null,null,null,null,null,null,null,null,null,null,null,null,null,0.1]
[42,{"$f":"VLOOKUP(A47+5,入力シート!$A$11:$J$454,2,FALSE)","v":"（４７）"},{"$f":"VLOOKUP(A47+5,入力シート!$A$11:$J$454,3,FALSE)","v":"調査対象学年の生徒に対して、前年度までに、互いの立場や考えを尊重しながら話し合い、結論を導くために考えをまとめることができるような指導を行いましたか"},null,38.4,55.5,5.8,0.1,null,null,null,null,null,null,null,null,null,null,null,null,null,null,null,null,0.2]
[43,{"$f":"VLOOKUP(A48+5,入力シート!$A$11:$J$454,2,FALSE)","v":"（４８）"},{"$f":"VLOOKUP(A48+5,入力シート!$A$11:$J$454,3,FALSE)","v":"調査対象学年の生徒に対して、前年度までに、表現の工夫とその効果などについて、読み手からの助言などを踏まえ、自分の文章のよい点や改善点を見いだすことができるような指導を行いましたか"},null,34,59.4,6.4,0.1,null,null,null,null,null,null,null,null,null,null,null,null,null,null,null,null,0.2]
[44,{"$f":"VLOOKUP(A49+5,入力シート!$A$11:$J$454,2,FALSE)","v":"（４９）"},{"$f":"VLOOKUP(A49+5,入力シート!$A$11:$J$454,3,FALSE)","v":"調査対象学年の生徒に対する数学の授業において、前年度までに、日常生活や社会における事象との関連を図った授業を行いましたか"},null,24.3,64.900000000000006,10.6,0.2,null,null,null,null,null,null,null,null,null,null,null,null,null,null,null,null,0.1]
[45,{"$f":"VLOOKUP(A50+5,入力シート!$A$11:$J$454,2,FALSE)","v":"（５０）"},{"$f":"VLOOKUP(A50+5,入力シート!$A$11:$J$454,3,FALSE)","v":"調査対象学年の生徒に対する数学の授業において、前年度までに、観察や操作、実験等の活動を通して、数量や図形等の性質を見いだす活動を行いましたか"},null,23.2,60.5,15.7,0.4,null,null,null,null,null,null,null,null,null,null,null,null,null,null,null,null,0.1]
[46,{"$f":"VLOOKUP(A51+5,入力シート!$A$11:$J$454,2,FALSE)","v":"（５１）"},{"$f":"VLOOKUP(A51+5,入力シート!$A$11:$J$454,3,FALSE)","v":"調査対象学年の生徒に対する数学の授業において、前年度までに、問題の答えを求めさせるだけではなく、どのように考え、その答えになったのかなどについて、根拠を明確にして生徒に筋道を立てて説明させるような授業を行いましたか"},null,46.7,49,4.0999999999999996,0.1,null,null,null,null,null,null,null,null,null,null,null,null,null,null,null,null,0.2]
[47,{"$f":"VLOOKUP(A52+5,入力シート!$A$11:$J$454,2,FALSE)","v":"（５２）"},{"$f":"VLOOKUP(A52+5,入力シート!$A$11:$J$454,3,FALSE)","v":"調査対象学年の生徒に対する数学の授業において、前年度までに、授業で、学習上つまずいた生徒に対する対応を行えていましたか"},null,43.1,52.7,4.0999999999999996,0.1,null,null,null,null,null,null,null,null,null,null,null,null,null,null,null,null,0.1]
[48,{"$f":"VLOOKUP(A53+5,入力シート!$A$11:$J$454,2,FALSE)","v":"（５３）"},{"$f":"VLOOKUP(A53+5,入力シート!$A$11:$J$454,3,FALSE)","v":"調査対象学年の生徒に対する理科の授業において、前年度までに、日常生活や社会における事象との関連を図った授業を行いましたか"},null,47,50.9,1.8,0.1,null,null,null,null,null,null,null,null,null,null,null,null,null,null,null,null,0.2]
[49,{"$f":"VLOOKUP(A54+5,入力シート!$A$11:$J$454,2,FALSE)","v":"（５４）"},{"$f":"VLOOKUP(A54+5,入力シート!$A$11:$J$454,3,FALSE)","v":"調査対象学年の生徒に対する理科の授業において、前年度までに、観察や実験の結果を分析し解釈する指導を行いましたか"},null,54.1,43.4,2.4,0.1,null,null,null,null,null,null,null,null,null,null,null,null,null,null,null,null,0.2]
[50,{"$f":"VLOOKUP(A55+5,入力シート!$A$11:$J$454,2,FALSE)","v":"（５５）"},{"$f":"VLOOKUP(A55+5,入力シート!$A$11:$J$454,3,FALSE)","v":"調査対象学年の生徒に対する英語の授業において、前年度までに、英語を聞いて（一文一文ではなく全体の）概要や要点を捉える活動を行いましたか"},null,40.299999999999997,53.8,5.7,0.2,null,null,null,null,null,null,null,null,null,null,null,null,null,null,null,null,0.2]
[51,{"$f":"VLOOKUP(A56+5,入力シート!$A$11:$J$454,2,FALSE)","v":"（５６）"},{"$f":"VLOOKUP(A56+5,入力シート!$A$11:$J$454,3,FALSE)","v":"調査対象学年の生徒に対する英語の授業において、前年度までに、英語を読んで（一文一文ではなく全体の）概要や要点を捉える活動を行いましたか"},null,46.7,49.8,3.3,0.1,null,null,null,null,null,null,null,null,null,null,null,null,null,null,null,null,0.1]
[52,{"$f":"VLOOKUP(A57+5,入力シート!$A$11:$J$454,2,FALSE)","v":"（５７）"},{"$f":"VLOOKUP(A57+5,入力シート!$A$11:$J$454,3,FALSE)","v":"調査対象学年の生徒に対する英語の授業において、前年度までに、原稿などの準備をすることなく、（即興で）自分の考えや気持ちなどを英語で伝え合う活動を行いましたか"},null,24.5,54.1,20.399999999999999,0.7,null,null,null,null,null,null,null,null,null,null,null,null,null,null,null,null,0.2]
[53,{"$f":"VLOOKUP(A58+5,入力シート!$A$11:$J$454,2,FALSE)","v":"（５８）"},{"$f":"VLOOKUP(A58+5,入力シート!$A$11:$J$454,3,FALSE)","v":"調査対象学年の生徒に対する英語の授業において、前年度までに、スピーチやプレゼンテーションなど、まとまった内容を英語で発表する活動を行いましたか"},null,33.299999999999997,54.3,11.6,0.6,null,null,null,null,null,null,null,null,null,null,null,null,null,null,null,null,0.2]
[54,{"$f":"VLOOKUP(A59+5,入力シート!$A$11:$J$454,2,FALSE)","v":"（５９）"},{"$f":"VLOOKUP(A59+5,入力シート!$A$11:$J$454,3,FALSE)","v":"調査対象学年の生徒に対する英語の授業において、前年度までに、自分の考えや気持ちなどを英語で書く活動を行いましたか"},null,34.700000000000003,56.9,8.1,0.2,null,null,null,null,null,null,null,null,null,null,null,null,null,null,null,null,0.2]
[55,{"$f":"VLOOKUP(A60+5,入力シート!$A$11:$J$454,2,FALSE)","v":"（６０）"},{"$f":"VLOOKUP(A60+5,入力シート!$A$11:$J$454,3,FALSE)","v":"調査対象学年の生徒に対する英語の授業において、前年度までに、聞いたり読んだりしたことについて、生徒同士で英語で問答したり意見を述べ合ったりする活動を行いましたか"},null,25.5,49.4,22.9,1.9,null,null,null,null,null,null,null,null,null,null,null,null,null,null,null,null,0.3]
[56,{"$f":"VLOOKUP(A61+5,入力シート!$A$11:$J$454,2,FALSE)","v":"（６１）"},{"$f":"VLOOKUP(A61+5,入力シート!$A$11:$J$454,3,FALSE)","v":"調査対象学年の生徒に対する英語の授業において、前年度までに、聞いたり読んだりしたことについて、その内容を英語で書いてまとめたり自分の考えを英語で書いたりする活動を行いましたか"},null,20.7,56,21.7,1.5,null,null,null,null,null,null,null,null,null,null,null,null,null,null,null,null,0.2]
[57,{"$f":"VLOOKUP(A62+5,入力シート!$A$11:$J$454,2,FALSE)","v":"（６２）"},{"$f":"VLOOKUP(A62+5,入力シート!$A$11:$J$454,3,FALSE)","v":"調査対象学年の生徒に対する英語の授業において、前年度までに、キーボード（画面上に表示されるキーボードやフリック入力も含む）を使って英語を書く活動を行いましたか"},null,21.6,45.4,29.3,3.5,null,null,null,null,null,null,null,null,null,null,null,null,null,null,null,null,0.1]
[58,{"$f":"VLOOKUP(A63+5,入力シート!$A$11:$J$454,2,FALSE)","v":"（６３）"},{"$f":"VLOOKUP(A63+5,入力シート!$A$11:$J$454,3,FALSE)","v":"英語担当教員とALT（外国語指導助手）との間で、授業のねらいや活動の意図、各学級や一人一人の生徒の実態等について共通認識を持ち、協力して授業を行うことができていると思いますか"},null,54.2,40.9,3.9,0.8,null,null,null,null,null,null,null,null,null,null,null,null,null,null,null,null,0.2]
[59,{"$f":"VLOOKUP(A64+5,入力シート!$A$11:$J$454,2,FALSE)","v":"（６４）"},{"$f":"VLOOKUP(A64+5,入力シート!$A$11:$J$454,3,FALSE)","v":"英語の授業以外にも生徒が英語に触れる機会（イングリッシュキャンプ、English Day、昼休みの英語での放送等）をどの程度設けていますか"},null,3.7,6.5,8.9,11.2,34.799999999999997,34.799999999999997,null,null,null,null,null,null,null,null,null,null,null,null,null,null,0.1]
[60,{"$f":"VLOOKUP(A65+5,入力シート!$A$11:$J$454,2,FALSE)","v":"（６５）"},{"$f":"VLOOKUP(A65+5,入力シート!$A$11:$J$454,3,FALSE)","v":"家庭学習の課題（宿題）として、生徒にPC・タブレットなどのICT機器を使用して、英語の学習をどの程度行わせていますか"},null,4.5999999999999996,9.6,24.4,22.7,21.3,17.3,null,null,null,null,null,null,null,null,null,null,null,null,null,null,0.1]
[61,{"$f":"VLOOKUP(A66+5,入力シート!$A$11:$J$454,2,FALSE)","v":"（６６）"},{"$f":"VLOOKUP(A66+5,入力シート!$A$11:$J$454,3,FALSE)","v":"生徒が学びを深めるための指導改善に向けた取組として、教員がコンピュータなどのICT機器の効果的な使い方を学ぶために必要な情報や研修、自己研鑽の機会等を十分に設けていますか"},null,31.8,57.6,10.3,0.3,null,null,null,null,null,null,null,null,null,null,null,null,null,null,null,null,0.1]
[62,{"$f":"VLOOKUP(A67+5,入力シート!$A$11:$J$454,2,FALSE)","v":"（６７）"},{"$f":"VLOOKUP(A67+5,入力シート!$A$11:$J$454,3,FALSE)","v":"コンピュータなどのICT機器の活用に関して、学校内外において十分に必要なサポートが受けられていますか"},null,31.4,53.8,13.5,1.2,null,null,null,null,null,null,null,null,null,null,null,null,null,null,null,null,0.1]
[63,{"$f":"VLOOKUP(A68+5,入力シート!$A$11:$J$454,2,FALSE)","v":"（６８）"},{"$f":"VLOOKUP(A68+5,入力シート!$A$11:$J$454,3,FALSE)","v":"調査対象学年の生徒に対して、前年度までに、生徒一人一人に配備されたPC・タブレットなどのICT機器を、授業でどの程度活用しましたか"},null,59.8,22.5,11.3,5,1.1000000000000001,0.2,null,null,null,null,null,null,null,null,null,null,null,null,null,null,0.2]
[64,{"$f":"VLOOKUP(A69+5,入力シート!$A$11:$J$454,2,FALSE)","v":"（６９）"},{"$f":"VLOOKUP(A69+5,入力シート!$A$11:$J$454,3,FALSE)","v":"調査対象学年の生徒が自分で調べる場面（ウェブブラウザによるインターネット検索等）では、生徒一人一人に配備されたPC・タブレットなどのICT機器をどの程度使用させていますか"},null,37.299999999999997,33.9,22.3,5.6,0.8,null,null,null,null,null,null,null,null,null,null,null,null,null,null,null,0.1]
[65,{"$f":"VLOOKUP(A70+5,入力シート!$A$11:$J$454,2,FALSE)","v":"（７０）"},{"$f":"VLOOKUP(A70+5,入力シート!$A$11:$J$454,3,FALSE)","v":"調査対象学年の生徒が自分の考えをまとめ、発表・表現する場面では、生徒一人一人に配備されたPC・タブレットなどのICT機器をどの程度使用させていますか"},null,19.8,28.1,30.1,18.7,3.2,null,null,null,null,null,null,null,null,null,null,null,null,null,null,null,0.1]
[66,{"$f":"VLOOKUP(A71+5,入力シート!$A$11:$J$454,2,FALSE)","v":"（７１）"},{"$f":"VLOOKUP(A71+5,入力シート!$A$11:$J$454,3,FALSE)","v":"教職員と調査対象学年の生徒がやりとりする場面では、生徒一人一人に配備されたPC・タブレットなどのICT機器をどの程度使用させていますか"},null,30.5,23.3,24.6,13.4,8,null,null,null,null,null,null,null,null,null,null,null,null,null,null,null,0.1]
[67,{"$f":"VLOOKUP(A72+5,入力シート!$A$11:$J$454,2,FALSE)","v":"（７２）"},{"$f":"VLOOKUP(A72+5,入力シート!$A$11:$J$454,3,FALSE)","v":"調査対象学年の生徒同士がやりとりする場面では、生徒一人一人に配備されたPC・タブレットなどのICT機器をどの程度使用させていますか"},null,15.4,20.7,26.8,18.600000000000001,18.5,null,null,null,null,null,null,null,null,null,null,null,null,null,null,null,0.2]
[68,{"$f":"VLOOKUP(A73+5,入力シート!$A$11:$J$454,2,FALSE)","v":"（７３）"},{"$f":"VLOOKUP(A73+5,入力シート!$A$11:$J$454,3,FALSE)","v":"調査対象学年の生徒が自分の特性や理解度・進度に合わせて課題に取り組む場面では、生徒一人一人に配備されたPC・タブレットなどのICT機器をどの程度使用させていますか"},null,16.5,24.3,29.9,19.7,9.4,null,null,null,null,null,null,null,null,null,null,null,null,null,null,null,0.2]
[69,{"$f":"VLOOKUP(A74+5,入力シート!$A$11:$J$454,2,FALSE)","v":"（７４）"},{"$f":"VLOOKUP(A74+5,入力シート!$A$11:$J$454,3,FALSE)","v":"前年度に、生徒一人一人に配備されたPC・タブレットなどのICT機器を使って、生徒が学校外の施設（他の学校や社会教育施設、民間企業等）にいる人々とやりとりする取組をどの程度実施しましたか"},null,2.1,4.5,7.5,8.6999999999999993,22.2,54.8,null,null,null,null,null,null,null,null,null,null,null,null,null,null,0.2]
[70,{"$f":"VLOOKUP(A75+5,入力シート!$A$11:$J$454,2,FALSE)","v":"（７５）"},{"$f":"VLOOKUP(A75+5,入力シート!$A$11:$J$454,3,FALSE)","v":"生徒一人一人に配備されたPC・タブレットなどの端末を、どの程度家庭で利用できるようにしていますか"},null,30.9,22.3,35.1,6.8,2.1,2.7,null,null,null,null,null,null,null,null,null,null,null,null,null,null,0.1]
[71,{"$f":"VLOOKUP(A76+5,入力シート!$A$11:$J$454,2,FALSE)","v":"（７６）"},{"$f":"VLOOKUP(A76+5,入力シート!$A$11:$J$454,3,FALSE)","v":"ICT機器を活用して各教科等における見方・考え方を働かせるような学習指導を行いましたか"},null,20.100000000000001,63.2,16,0.4,null,null,null,null,null,null,null,null,null,null,null,null,null,null,null,null,0.2]
[72,{"$f":"VLOOKUP(A77+5,入力シート!$A$11:$J$454,2,FALSE)","v":"（７７）"},{"$f":"VLOOKUP(A77+5,入力シート!$A$11:$J$454,3,FALSE)","v":"ICT機器やインターネットの利活用について、目的や場面に応じた適切な使い方や、利活用にあたってのルールやマナー（長時間利用防止や情報の取扱いも含む）に関する指導を行いましたか"},null,52.1,45.1,2.6,0,null,null,null,null,null,null,null,null,null,null,null,null,null,null,null,null,0.1]
[73,{"$f":"VLOOKUP(A78+5,入力シート!$A$11:$J$454,2,FALSE)","v":"（７８－１）"},{"$f":"VLOOKUP(A78+5,入力シート!$A$11:$J$454,3,FALSE)","v":"生徒一人一人に配備されたPC・タブレットなどのICT機器について、次のような用途でどの程度活用していますか。（１）不登校生徒に対する学習活動等の支援（（７８-２）の授業配信を含む）"},null,25.6,12.3,14,10.4,9.1,18.2,10.3,null,null,null,null,null,null,null,null,null,null,null,null,null,0.1]
[74,{"$f":"VLOOKUP(A79+5,入力シート!$A$11:$J$454,2,FALSE)","v":"（７８－２）"},{"$f":"VLOOKUP(A79+5,入力シート!$A$11:$J$454,3,FALSE)","v":"生徒一人一人に配備されたPC・タブレットなどのICT機器について、次のような用途でどの程度活用していますか。（２）希望する不登校生徒に対する授業配信"},null,25.1,7.3,5.9,4.0999999999999996,5.6,22.8,29.1,null,null,null,null,null,null,null,null,null,null,null,null,null,0.1]
[75,{"$f":"VLOOKUP(A80+5,入力シート!$A$11:$J$454,2,FALSE)","v":"（７８－３）"},{"$f":"VLOOKUP(A80+5,入力シート!$A$11:$J$454,3,FALSE)","v":"生徒一人一人に配備されたPC・タブレットなどのICT機器について、次のような用途でどの程度活用していますか。（３）特別な支援を要する生徒に対する学習活動等の支援"},null,32.5,14.1,14.3,7.5,5.3,11.2,14.8,null,null,null,null,null,null,null,null,null,null,null,null,null,0.1]
[76,{"$f":"VLOOKUP(A81+5,入力シート!$A$11:$J$454,2,FALSE)","v":"（７８－４）"},{"$f":"VLOOKUP(A81+5,入力シート!$A$11:$J$454,3,FALSE)","v":"生徒一人一人に配備されたPC・タブレットなどのICT機器について、次のような用途でどの程度活用していますか。（４）外国人生徒に対する学習活動等の支援"},null,15.3,5.3,6.9,2.6,1.9,8.5,59.4,null,null,null,null,null,null,null,null,null,null,null,null,null,0.2]
[77,{"$f":"VLOOKUP(A82+5,入力シート!$A$11:$J$454,2,FALSE)","v":"（７８－５）"},{"$f":"VLOOKUP(A82+5,入力シート!$A$11:$J$454,3,FALSE)","v":"生徒一人一人に配備されたPC・タブレットなどのICT機器について、次のような用途でどの程度活用していますか。（５）生徒の心身の状況の把握"},null,35.4,2.4,5,9.3000000000000007,8.6,30.5,8.6,null,null,null,null,null,null,null,null,null,null,null,null,null,0.1]
[78,{"$f":"VLOOKUP(A83+5,入力シート!$A$11:$J$454,2,FALSE)","v":"（７８－６）"},{"$f":"VLOOKUP(A83+5,入力シート!$A$11:$J$454,3,FALSE)","v":"生徒一人一人に配備されたPC・タブレットなどのICT機器について、次のような用途でどの程度活用していますか。（６）生徒に対するオンラインを活用した相談・支援"},null,10.7,2.2000000000000002,4.5,7.6,8.9,48.3,17.600000000000001,null,null,null,null,null,null,null,null,null,null,null,null,null,0.1]
[79,{"$f":"VLOOKUP(A84+5,入力シート!$A$11:$J$454,2,FALSE)","v":"（７９）"},{"$f":"VLOOKUP(A84+5,入力シート!$A$11:$J$454,3,FALSE)","v":"障害のある生徒が一人一人に配備されたPC・タブレットなどのICT機器を活用する際、入出力支援装置等を活用し、障害種・障害の状態や特性及び心身の発達の段階等に応じた支援をどの程度行いましたか"},null,5.2,10.7,8.3000000000000007,4.9000000000000004,70.8,null,null,null,null,null,null,null,null,null,null,null,null,null,null,null,0.1]
[80,{"$f":"VLOOKUP(A85+5,入力シート!$A$11:$J$454,2,FALSE)","v":"（８０）"},{"$f":"VLOOKUP(A85+5,入力シート!$A$11:$J$454,3,FALSE)","v":"前年度までに、調査対象学年の生徒に対する授業の中で、発達障害を含む障害のある生徒も含めた、多様な生徒が通常の学級に在籍していることを前提に、学級全体での指導の工夫を行いましたか"},null,53.9,44,2,null,null,null,null,null,null,null,null,null,null,null,null,null,null,null,null,null,0.1]
[81,{"$f":"VLOOKUP(A86+5,入力シート!$A$11:$J$454,2,FALSE)","v":"（８１）"},{"$f":"VLOOKUP(A86+5,入力シート!$A$11:$J$454,3,FALSE)","v":"前年度までに、調査対象学年の生徒に対する授業の中で、発達障害を含む障害のある生徒に対する個に応じた指導内容や指導方法の工夫として、当該生徒が学習活動を行う場合に生じる「困難さ」に対する「指導上の工夫の意図」を理解し、個に応じた様々な「手立て」を講じましたか"},null,39.299999999999997,56.7,3.8,null,null,null,null,null,null,null,null,null,null,null,null,null,null,null,null,null,0.2]
[82,{"$f":"VLOOKUP(A87+5,入力シート!$A$11:$J$454,2,FALSE)","v":"（８２－１）"},{"$f":"VLOOKUP(A87+5,入力シート!$A$11:$J$454,3,FALSE)","v":"学校では、調査対象学年の生徒のうち、発達障害を含む障害のある生徒に対する授業の中で、合理的配慮の提供として、個々の障害の状態や特性及び心身の発達の段階に応じて、本人や保護者の意向を踏まえ、次のことをどの程度行いましたか。（１）人的支援の配慮"},null,37.200000000000003,36.200000000000003,2.8,23.7,null,null,null,null,null,null,null,null,null,null,null,null,null,null,null,null,0.1]
[83,{"$f":"VLOOKUP(A88+5,入力シート!$A$11:$J$454,2,FALSE)","v":"（８２－２）"},{"$f":"VLOOKUP(A88+5,入力シート!$A$11:$J$454,3,FALSE)","v":"学校では、調査対象学年の生徒のうち、発達障害を含む障害のある生徒に対する授業の中で、合理的配慮の提供として、個々の障害の状態や特性及び心身の発達の段階に応じて、本人や保護者の意向を踏まえ、次のことをどの程度行いましたか。（２）情報の取得、利用及び意思疎通への配慮"},null,18.899999999999999,30.4,2,48.6,null,null,null,null,null,null,null,null,null,null,null,null,null,null,null,null,0.1]
[84,{"$f":"VLOOKUP(A89+5,入力シート!$A$11:$J$454,2,FALSE)","v":"（８２－３）"},{"$f":"VLOOKUP(A89+5,入力シート!$A$11:$J$454,3,FALSE)","v":"学校では、調査対象学年の生徒のうち、発達障害を含む障害のある生徒に対する授業の中で、合理的配慮の提供として、個々の障害の状態や特性及び心身の発達の段階に応じて、本人や保護者の意向を踏まえ、次のことをどの程度行いましたか。（３）ルール・慣行の柔軟な変更（学習内容に関わるものを除く）"},null,28,30.9,1.9,39,null,null,null,null,null,null,null,null,null,null,null,null,null,null,null,null,0.2]
[85,{"$f":"VLOOKUP(A90+5,入力シート!$A$11:$J$454,2,FALSE)","v":"（８２－４）"},{"$f":"VLOOKUP(A90+5,入力シート!$A$11:$J$454,3,FALSE)","v":"学校では、調査対象学年の生徒のうち、発達障害を含む障害のある生徒に対する授業の中で、合理的配慮の提供として、個々の障害の状態や特性及び心身の発達の段階に応じて、本人や保護者の意向を踏まえ、次のことをどの程度行いましたか。（４）学習内容の柔軟な変更や調整"},null,26.2,28.5,1.4,43.7,null,null,null,null,null,null,null,null,null,null,null,null,null,null,null,null,0.1]
[86,{"$f":"VLOOKUP(A91+5,入力シート!$A$11:$J$454,2,FALSE)","v":"（８３）"},{"$f":"VLOOKUP(A91+5,入力シート!$A$11:$J$454,3,FALSE)","v":"学校では、調査対象学年の生徒のうち、日本語指導が必要な生徒に対して、特別な配慮に基づく指導をどの程度行っていますか"},null,14.3,17.8,1.8,0.6,65.400000000000006,null,null,null,null,null,null,null,null,null,null,null,null,null,null,null,0.1]
[87,{"$f":"VLOOKUP(A92+5,入力シート!$A$11:$J$454,2,FALSE)","v":"（８４）"},{"$f":"VLOOKUP(A92+5,入力シート!$A$11:$J$454,3,FALSE)","v":"前年度までに、近隣等の小学校と、教科の教育課程の接続や、教科に関する共通の目標設定等、教育課程に関する共通の取組をどの程度行いましたか"},null,28.8,43.2,22.1,5.8,null,null,null,null,null,null,null,null,null,null,null,null,null,null,null,null,0.1]
[88,{"$f":"VLOOKUP(A93+5,入力シート!$A$11:$J$454,2,FALSE)","v":"（８５）"},{"$f":"VLOOKUP(A93+5,入力シート!$A$11:$J$454,3,FALSE)","v":"調査対象学年の生徒に対して、前年度に、職場体験活動を何日程度行いましたか"},null,18.7,43,27.7,2.5,6.8,1.2,null,null,null,null,null,null,null,null,null,null,null,null,null,null,0.1]
[89,{"$f":"VLOOKUP(A94+5,入力シート!$A$11:$J$454,2,FALSE)","v":"（８６）"},{"$f":"VLOOKUP(A94+5,入力シート!$A$11:$J$454,3,FALSE)","v":"コミュニティ・スクールの仕組みや地域学校協働活動等の取組を活用して、学校の運営や教育活動に関し、生徒が意見を表明することが出来る取組を行いましたか"},null,16.7,32.299999999999997,28.2,22.7,null,null,null,null,null,null,null,null,null,null,null,null,null,null,null,null,0.1]
[90,{"$f":"VLOOKUP(A95+5,入力シート!$A$11:$J$454,2,FALSE)","v":"（８７）"},{"$f":"VLOOKUP(A95+5,入力シート!$A$11:$J$454,3,FALSE)","v":"コミュニティ・スクールや地域学校協働活動等の取組によって、学校と地域や保護者の相互理解が深まりましたか"},null,28,56.4,6.5,1,8,null,null,null,null,null,null,null,null,null,null,null,null,null,null,null,0.1]
[91,{"$f":"VLOOKUP(A96+5,入力シート!$A$11:$J$454,2,FALSE)","v":"（８８）"},{"$f":"VLOOKUP(A96+5,入力シート!$A$11:$J$454,3,FALSE)","v":"コミュニティ・スクールや地域学校協働活動等の取組は、学校教育活動の充実や学校課題の解決だけではなく、地域及び家庭の課題解決や地域活動の担い手育成に貢献していたと思いますか"},null,26.1,55.8,9.1999999999999993,1.2,7.7,null,null,null,null,null,null,null,null,null,null,null,null,null,null,null,0.1]
[92,{"$f":"VLOOKUP(A97+5,入力シート!$A$11:$J$454,2,FALSE)","v":"（８９）"},{"$f":"VLOOKUP(A97+5,入力シート!$A$11:$J$454,3,FALSE)","v":"調査対象学年の生徒に対して、前年度までに、家庭学習の取組として、学校では、生徒に家庭での学習方法等を具体例を挙げながら教えましたか"},null,33.4,57.8,8.4,0.3,null,null,null,null,null,null,null,null,null,null,null,null,null,null,null,null,0.1]
[93,{"$f":"VLOOKUP(A98+5,入力シート!$A$11:$J$454,2,FALSE)","v":"（９０）"},{"$f":"VLOOKUP(A98+5,入力シート!$A$11:$J$454,3,FALSE)","v":"調査対象学年の生徒に対して、前年度までに、家庭学習について、生徒が自分で学ぶ内容や学び方を決めるなど、工夫して取り組めるような活動を行いましたか"},null,26.8,58.2,14.4,0.4,null,null,null,null,null,null,null,null,null,null,null,null,null,null,null,null,0.2]
[94,{"$f":"VLOOKUP(A99+5,入力シート!$A$11:$J$454,2,FALSE)","v":"（９１）"},{"$f":"VLOOKUP(A99+5,入力シート!$A$11:$J$454,3,FALSE)","v":"調査対象学年の生徒に対して、前年度までに、学校では、生徒が行った家庭学習の課題について、その後の教員の指導改善や生徒の学習改善に生かしましたか"},null,22.2,61,16.100000000000001,0.5,null,null,null,null,null,null,null,null,null,null,null,null,null,null,null,null,0.1]
[95,{"$f":"VLOOKUP(A100+5,入力シート!$A$11:$J$454,2,FALSE)","v":"（９２）"},{"$f":"VLOOKUP(A100+5,入力シート!$A$11:$J$454,3,FALSE)","v":"令和７年度全国学力・学習状況調査の自校の結果について、調査対象学年・教科だけではなく、学校全体で教育活動を改善するために活用しましたか"},null,29.8,63.8,6.3,null,null,null,null,null,null,null,null,null,null,null,null,null,null,null,null,null,0.1]
[96,{"$f":"VLOOKUP(A101+5,入力シート!$A$11:$J$454,2,FALSE)","v":"（９３）"},{"$f":"VLOOKUP(A101+5,入力シート!$A$11:$J$454,3,FALSE)","v":"令和７年度全国学力・学習状況調査の自校の結果について、保護者や地域の人たちに対して公表や説明をどの程度行いましたか（学校のホームページや学校だよりなどへの掲載、保護者会等での説明を含む）"},null,25.7,58.5,15.6,null,null,null,null,null,null,null,null,null,null,null,null,null,null,null,null,null,0.1]
[97,{"$f":"VLOOKUP(A102+5,入力シート!$A$11:$J$454,2,FALSE)","v":0},{"$f":"VLOOKUP(A102+5,入力シート!$A$11:$J$454,3,FALSE)","v":0}]
[98,{"$f":"VLOOKUP(A103+5,入力シート!$A$11:$J$454,2,FALSE)","v":0},{"$f":"VLOOKUP(A103+5,入力シート!$A$11:$J$454,3,FALSE)","v":0}]
[99,{"$f":"VLOOKUP(A104+5,入力シート!$A$11:$J$454,2,FALSE)","v":0},{"$f":"VLOOKUP(A104+5,入力シート!$A$11:$J$454,3,FALSE)","v":0}]
[100,{"$f":"VLOOKUP(A105+5,入力シート!$A$11:$J$454,2,FALSE)","v":0},{"$f":"VLOOKUP(A105+5,入力シート!$A$11:$J$454,3,FALSE)","v":0}]
[101,{"$f":"VLOOKUP(A106+5,入力シート!$A$11:$J$454,2,FALSE)","v":0},{"$f":"VLOOKUP(A106+5,入力シート!$A$11:$J$454,3,FALSE)","v":0}]
[102,{"$f":"VLOOKUP(A107+5,入力シート!$A$11:$J$454,2,FALSE)","v":0},{"$f":"VLOOKUP(A107+5,入力シート!$A$11:$J$454,3,FALSE)","v":0}]
[103,{"$f":"VLOOKUP(A108+5,入力シート!$A$11:$J$454,2,FALSE)","v":0},{"$f":"VLOOKUP(A108+5,入力シート!$A$11:$J$454,3,FALSE)","v":0}]
[104,{"$f":"VLOOKUP(A109+5,入力シート!$A$11:$J$454,2,FALSE)","v":0},{"$f":"VLOOKUP(A109+5,入力シート!$A$11:$J$454,3,FALSE)","v":0}]
[105,{"$f":"VLOOKUP(A110+5,入力シート!$A$11:$J$454,2,FALSE)","v":0},{"$f":"VLOOKUP(A110+5,入力シート!$A$11:$J$454,3,FALSE)","v":0}]
[106,{"$f":"VLOOKUP(A111+5,入力シート!$A$11:$J$454,2,FALSE)","v":0},{"$f":"VLOOKUP(A111+5,入力シート!$A$11:$J$454,3,FALSE)","v":0}]